Workbook

Sheet Sheet1
A1: UNITED BROTHERS
A2: CONSIGNMENT STOCKIST OF GAIL (INDIA) LTD
A3: 301,HERITAGE PLAZA, R.S.MAHARAJ MARG,( TELI GALLI CROSS LANE), ANDHERI (E), MUMBAI - 400 069
A4: TEL: 26844612(4 LINES) FAX: 26822914 E-MAIL:,info@unibrothers.com , prashant@unibrothers.com , jyoti@unibrothers.com
A5: EX-WORKS PRICE OF HDPE "G-LEX / G-LENE " W.E.F. 19th DECEMBER 2013
A6: CASH / ADVANCE PAYMENT FOR MAHARASHTRA & DAMAN
B7: Freight | D7: 1935.55 | G7: Freight | I7: 1947.27 | L7: Freight | N7: 2419.12 | Q7: Freight | S7: 1867.95 | V7: Freight | X7: 1549.28 | AA7: Freight | AC7: 2142.53 | AF7: Freight 2701.72
B8: DAMAN | G8: SILVASSA | L8: MUMBAI/BHIWANDI/THANE | Q8: JALGAON | V8: NAGPUR | AA8: AURANGABAD | AF8: SOLAPUR
B9: BASIC | C9: DISC | D9: LOC | E9: EXCISE | F9: EX-WKS | G9: BASIC | H9: DISC | I9: LOC | J9: EXCISE | K9: EX-WKS | L9: BASIC | M9: DISC | N9: LOC | O9: EXCISE | P9: EX-WKS | Q9: BASIC | R9: DISC | S9: LOC | T9: EXCISE | U9: EX-WKS | V9: BASIC | W9: DISC | X9: LOC | Y9: EXCISE | Z9: EX-WKS | AA9: BASIC | AB9: DISC | AD9: EXCISE | AE9: EX-WKS | AF9: BASIC | AG9: DISC | AI9: EXCISE | AJ9: EX-WKS
A10: BM
A11: B52A003A | B11: 101900 | C11: 1000 | D11: 2217.54 | E11: =(B11-C11-D11)*12.36% -> 12197.15206 | F11: =B11-C11-D11+E11 -> 110879.6121 | G11: 101900 | H11: 1000 | I11: 2217.54 | J11: =(G11-H11-I11)*12.36% -> 12197.15206 | K11: =G11-H11-I11+J11 -> 110879.6121 | L11: 101260 | M11: 1000 | N11: 2203.48 | O11: =(L11-M11-N11)*12.36% -> 12119.78587 | P11: =L11-M11-N11+O11 -> 110176.3059 | Q11: 102290 | R11: 1000 | S11: 2226.11 | T11: =(Q11-R11-S11)*12.36% -> 12244.2968 | U11: =Q11-R11-S11+T11 -> 111308.1868 | V11: 103340 | W11: 1000 | X11: 2249.19 | Y11: =(V11-W11-X11)*12.36% -> 12371.22412 | Z11: =V11-W11-X11+Y11 -> 112462.0341 | AA11: 101910 | AB11: 1000 | AC11: 2217.76 | AD11: =(AA11-AB11-AC11)*12.36% -> 12198.36086 | AE11: =AA11-AB11-AC11+AD11 -> 110890.6009 | AF11: 101280 | AG11: 1000 | AH11: 2203.92 | AI11: =(AF11-AG11-AH11)*12.36% -> 12122.20349 | AJ11: =AF11-AG11-AH11+AI11 -> 110198.2835
A12: B63A003A | B12: 101900 | C12: 1000 | D12: 2217.54 | E12: =(B12-C12-D12)*12.36% -> 12197.15206 | F12: =B12-C12-D12+E12 -> 110879.6121 | G12: 101900 | H12: 1000 | I12: 2217.54 | J12: =(G12-H12-I12)*12.36% -> 12197.15206 | K12: =G12-H12-I12+J12 -> 110879.6121 | L12: 101260 | M12: 1000 | N12: 2203.48 | O12: =(L12-M12-N12)*12.36% -> 12119.78587 | P12: =L12-M12-N12+O12 -> 110176.3059 | Q12: 102290 | R12: 1000 | S12: 2226.11 | T12: =(Q12-R12-S12)*12.36% -> 12244.2968 | U12: =Q12-R12-S12+T12 -> 111308.1868 | V12: 103340 | W12: 1000 | X12: 2249.19 | Y12: =(V12-W12-X12)*12.36% -> 12371.22412 | Z12: =V12-W12-X12+Y12 -> 112462.0341 | AA12: 101910 | AB12: 1000 | AC12: 2217.76 | AD12: =(AA12-AB12-AC12)*12.36% -> 12198.36086 | AE12: =AA12-AB12-AC12+AD12 -> 110890.6009 | AF12: 101280 | AG12: 1000 | AH12: 2203.92 | AI12: =(AF12-AG12-AH12)*12.36% -> 12122.20349 | AJ12: =AF12-AG12-AH12+AI12 -> 110198.2835
A13: B55HM0003A | B13: 105850 | C13: 1000 | D13: 2304.35 | E13: =(B13-C13-D13)*12.36% -> 12674.64234 | F13: =B13-C13-D13+E13 -> 115220.2923 | G13: 105860 | H13: 1000 | I13: 2304.57 | J13: =(G13-H13-I13)*12.36% -> 12675.85115 | K13: =G13-H13-I13+J13 -> 115231.2811 | L13: 105270 | M13: 1000 | N13: 2291.61 | O13: =(L13-M13-N13)*12.36% -> 12604.529 | P13: =L13-M13-N13+O13 -> 114582.919 | Q13: 106300 | R13: 1000 | S13: 2314.24 | T13: =(Q13-R13-S13)*12.36% -> 12729.03994 | U13: =Q13-R13-S13+T13 -> 115714.7999 | V13: 107440 | W13: 1000 | X13: 2339.3 | Y13: =(V13-W13-X13)*12.36% -> 12866.84652 | Z13: =V13-W13-X13+Y13 -> 116967.5465 | AA13: 105910 | AB13: 1000 | AC13: 2305.67 | AD13: =(AA13-AB13-AC13)*12.36% -> 12681.89519 | AE13: =AA13-AB13-AC13+AD13 -> 115286.2252 | AF13: 105390 | AG13: 1000 | AH13: 2294.24 | AI13: =(AF13-AG13-AH13)*12.36% -> 12619.03594 | AJ13: =AF13-AG13-AH13+AI13 -> 114714.7959
A14: B53EA0035A | B14: 102400 | C14: 1000 | D14: 2228.53 | E14: =(B14-C14-D14)*12.36% -> 12257.59369 | F14: =B14-C14-D14+E14 -> 111429.0637 | G14: 102400 | H14: 1000 | I14: 2228.53 | J14: =(G14-H14-I14)*12.36% -> 12257.59369 | K14: =G14-H14-I14+J14 -> 111429.0637
A15: CABLE-INSUL
A16: C43D006A | B16: 100855 | C16: 1000 | D16: 2194.57 | E16: =(B16-C16-D16)*12.36% -> 12070.82915 | F16: =B16-C16-D16+E16 -> 109731.2591 | G16: 100855 | H16: 1000 | I16: 2194.57 | J16: =(G16-H16-I16)*12.36% -> 12070.82915 | K16: =G16-H16-I16+J16 -> 109731.2591 | L16: 100238 | M16: 1000 | N16: 2181 | O16: =(L16-M16-N16)*12.36% -> 11996.2452 | P16: =L16-M16-N16+O16 -> 109053.2452 | Q16: 101273 | R16: 1000 | S16: 2203.76 | T16: =(Q16-R16-S16)*12.36% -> 12121.35806 | U16: =Q16-R16-S16+T16 -> 110190.5981 | V16: 102366 | W16: 1000 | X16: 2227.77 | Y16: =(V16-W16-X16)*12.36% -> 12253.48523 | Z16: =V16-W16-X16+Y16 -> 111391.7152 | AA16: 100922 | AB16: 1000 | AC16: 2196.04 | AD16: =(AA16-AB16-AC16)*12.36% -> 12078.92866 | AE16: =AA16-AB16-AC16+AD16 -> 109804.8887 | AF16: 100314 | AG16: 1000 | AH16: 2182.67 | AI16: =(AF16-AG16-AH16)*12.36% -> 12005.43239 | AJ16: =AF16-AG16-AH16+AI16 -> 109136.7624
A18: SHETG
A19: E45A003A | B19: 101950 | C19: 1000 | D19: 2218.64 | E19: =(B19-C19-D19)*12.36% -> 12203.1961 | F19: =B19-C19-D19+E19 -> 110934.5561 | G19: 101950 | H19: 1000 | I19: 2218.64 | J19: =(G19-H19-I19)*12.36% -> 12203.1961 | K19: =G19-H19-I19+J19 -> 110934.5561 | L19: 101290 | M19: 1000 | N19: 2204.14 | O19: =(L19-M19-N19)*12.36% -> 12123.4123 | P19: =L19-M19-N19+O19 -> 110209.2723 | Q19: 102390 | R19: 1000 | S19: 2228.31 | T19: =(Q19-R19-S19)*12.36% -> 12256.38488 | U19: =Q19-R19-S19+T19 -> 111418.0749 | V19: 103530 | W19: 1000 | X19: 2253.36 | Y19: =(V19-W19-X19)*12.36% -> 12394.1927 | Z19: =V19-W19-X19+Y19 -> 112670.8327 | AA19: 102020 | AB19: 1000 | AC19: 2220.18 | AD19: =(AA19-AB19-AC19)*12.36% -> 12211.65775 | AE19: =AA19-AB19-AC19+AD19 -> 111011.4778 | AF19: 101380 | AG19: 1000 | AH19: 2206.11 | AI19: =(AF19-AG19-AH19)*12.36% -> 12134.2928 | AJ19: =AF19-AG19-AH19+AI19 -> 110308.1828
A20: E45A003OG
A21: EXTR
A22: E52A003A | B22: 103120 | C22: 1000 | D22: 2244.35 | E22: =(B22-C22-D22)*12.36% -> 12344.63034 | F22: =B22-C22-D22+E22 -> 112220.2803 | G22: 103120 | H22: 1000 | I22: 2244.35 | J22: =(G22-H22-I22)*12.36% -> 12344.63034 | K22: =G22-H22-I22+J22 -> 112220.2803 | L22: 102460 | M22: 1000 | N22: 2229.85 | O22: =(L22-M22-N22)*12.36% -> 12264.84654 | P22: =L22-M22-N22+O22 -> 111494.9965 | Q22: 103560 | R22: 1000 | S22: 2254.02 | T22: =(Q22-R22-S22)*12.36% -> 12397.81913 | U22: =Q22-R22-S22+T22 -> 112703.7991 | V22: 104700 | W22: 1000 | X22: 2279.08 | Y22: =(V22-W22-X22)*12.36% -> 12535.62571 | Z22: =V22-W22-X22+Y22 -> 113956.5457 | AA22: 103180 | AB22: 1000 | AC22: 2245.67 | AD22: =(AA22-AB22-AC22)*12.36% -> 12351.88319 | AE22: =AA22-AB22-AC22+AD22 -> 112286.2132 | AF22: 102550 | AG22: 1000 | AH22: 2231.83 | AI22: =(AF22-AG22-AH22)*12.36% -> 12275.72581 | AJ22: =AF22-AG22-AH22+AI22 -> 111593.8958
A23: E52A003OG
A24: E52U003A | B24: 106900 | C24: 1000 | D24: 2272.49 | E24: =(B24-C24-D24)*12.36% -> 12808.36024 | F24: =B24-C24-D24+E24 -> 116435.8702 | G24: 106900 | H24: 1000 | I24: 2272.49 | J24: =(G24-H24-I24)*12.36% -> 12808.36024 | K24: =G24-H24-I24+J24 -> 116435.8702 | L24: 106240 | M24: 1000 | N24: 2257.98 | O24: =(L24-M24-N24)*12.36% -> 12728.57767 | P24: =L24-M24-N24+O24 -> 115710.5977 | Q24: 107340 | R24: 1000 | S24: 2282.16 | T24: =(Q24-R24-S24)*12.36% -> 12861.54902 | U24: =Q24-R24-S24+T24 -> 116919.389 | V24: 108480 | W24: 1000 | X24: 2307.21 | Y24: =(V24-W24-X24)*12.36% -> 12999.35684 | Z24: =V24-W24-X24+Y24 -> 118172.1468 | AA24: 106960 | AB24: 1000 | AC24: 2273.8 | AD24: =(AA24-AB24-AC24)*12.36% -> 12815.61432 | AE24: =AA24-AB24-AC24+AD24 -> 116501.8143 | AF24: 106330 | AG24: 1000 | AH24: 2259.96 | AI24: =(AF24-AG24-AH24)*12.36% -> 12739.45694 | AJ24: =AF24-AG24-AH24+AI24 -> 115809.4969
A25: E52U003OG
A26: HM FILM
A27: F55HM0003A | B27: 102400 | C27: 1000 | D27: 2228.53 | E27: =(B27-C27-D27)*12.36% -> 12257.59369 | F27: =B27-C27-D27+E27 -> 111429.0637 | G27: 102910 | H27: 1000 | I27: 2239.74 | J27: =(G27-H27-I27)*12.36% -> 12319.24414 | K27: =G27-H27-I27+J27 -> 111989.5041 | L27: 102320 | M27: 1000 | N27: 2226.77 | O27: =(L27-M27-N27)*12.36% -> 12247.92323 | P27: =L27-M27-N27+O27 -> 111341.1532 | Q27: 103350 | R27: 1000 | S27: 2249.41 | T27: =(Q27-R27-S27)*12.36% -> 12372.43292 | U27: =Q27-R27-S27+T27 -> 112473.0229 | V27: 104490 | W27: 1000 | X27: 2274.46 | Y27: =(V27-W27-X27)*12.36% -> 12510.24074 | Z27: =V27-W27-X27+Y27 -> 113725.7807 | AA27: 102960 | AB27: 1000 | AC27: 2240.84 | AD27: =(AA27-AB27-AC27)*12.36% -> 12325.28818 | AE27: =AA27-AB27-AC27+AD27 -> 112044.4482 | AF27: 102440 | AG27: 1000 | AH27: 2229.41 | AI27: =(AF27-AG27-AH27)*12.36% -> 12262.42892 | AJ27: =AF27-AG27-AH27+AI27 -> 111473.0189
A28: F55HM0003OG
A29: IM HIGH
A30: I50A180A | B30: 99720 | C30: 1000 | D30: 2169.63 | E30: =(B30-C30-D30)*12.36% -> 11933.62573 | F30: =B30-C30-D30+E30 -> 108483.9957 | G30: 99730 | H30: 1000 | I30: 2169.85 | J30: =(G30-H30-I30)*12.36% -> 11934.83454 | K30: =G30-H30-I30+J30 -> 108494.9845 | L30: 99200 | M30: 1000 | N30: 2158.2 | O30: =(L30-M30-N30)*12.36% -> 11870.76648 | P30: =L30-M30-N30+O30 -> 107912.5665 | Q30: 100160 | R30: 1000 | S30: 2179.3 | T30: =(Q30-R30-S30)*12.36% -> 11986.81452 | U30: =Q30-R30-S30+T30 -> 108967.5145 | V30: 101270 | W30: 1000 | X30: 2203.7 | Y30: =(V30-W30-X30)*12.36% -> 12120.99468 | Z30: =V30-W30-X30+Y30 -> 110187.2947 | AA30: 99800 | AB30: 1000 | AC30: 2171.39 | AD30: =(AA30-AB30-AC30)*12.36% -> 11943.2962 | AE30: =AA30-AB30-AC30+AD30 -> 108571.9062 | AF30: 99340 | AG30: 1000 | AH30: 2161.28 | AI30: =(AF30-AG30-AH30)*12.36% -> 11887.68979 | AJ30: =AF30-AG30-AH30+AI30 -> 108066.4098
A31: I50A180OG
A32: IM LOW
A33: I60A080A | B33: 101090 | C33: 1000 | D33: 2199.74 | E33: =(B33-C33-D33)*12.36% -> 12099.23614 | F33: =B33-C33-D33+E33 -> 109989.4961 | G33: 101090 | H33: 1000 | I33: 2199.74 | J33: =(G33-H33-I33)*12.36% -> 12099.23614 | K33: =G33-H33-I33+J33 -> 109989.4961 | L33: 100440 | M33: 1000 | N33: 2185.45 | O33: =(L33-M33-N33)*12.36% -> 12020.66238 | P33: =L33-M33-N33+O33 -> 109275.2124 | Q33: 101530 | R33: 1000 | S33: 2209.41 | T33: =(Q33-R33-S33)*12.36% -> 12152.42492 | U33: =Q33-R33-S33+T33 -> 110473.0149 | V33: 102680 | W33: 1000 | X33: 2234.68 | Y33: =(V33-W33-X33)*12.36% -> 12291.44155 | Z33: =V33-W33-X33+Y33 -> 111736.7616 | AA33: 101160 | AB33: 1000 | AC33: 2201.28 | AD33: =(AA33-AB33-AC33)*12.36% -> 12107.69779 | AE33: =AA33-AB33-AC33+AD33 -> 110066.4178 | AF33: 100520 | AG33: 1000 | AH33: 2187.21 | AI33: =(AF33-AG33-AH33)*12.36% -> 12030.33284 | AJ33: =AF33-AG33-AH33+AI33 -> 109363.1228
A34: I60A080OG
A35: IM-L-UV
A36: I60U080A | B36: 102630 | C36: 1000 | D36: 2233.59 | E36: =(B36-C36-D36)*12.36% -> 12285.39628 | F36: =B36-C36-D36+E36 -> 111681.8063 | G36: 102630 | H36: 1000 | I36: 2233.59 | J36: =(G36-H36-I36)*12.36% -> 12285.39628 | K36: =G36-H36-I36+J36 -> 111681.8063 | L36: 101970 | M36: 1000 | N36: 2219.08 | O36: =(L36-M36-N36)*12.36% -> 12205.61371 | P36: =L36-M36-N36+O36 -> 110956.5337 | Q36: 103070 | R36: 1000 | S36: 2243.26 | T36: =(Q36-R36-S36)*12.36% -> 12338.58506 | U36: =Q36-R36-S36+T36 -> 112165.3251 | V36: 104210 | W36: 1000 | X36: 2268.31 | Y36: =(V36-W36-X36)*12.36% -> 12476.39288 | Z36: =V36-W36-X36+Y36 -> 113418.0829 | AA36: 102700 | AB36: 1000 | AC36: 2235.12 | AD36: =(AA36-AB36-AC36)*12.36% -> 12293.85917 | AE36: =AA36-AB36-AC36+AD36 -> 111758.7392 | AF36: 102060 | AG36: 1000 | AH36: 2221.06 | AI36: =(AF36-AG36-AH36)*12.36% -> 12216.49298 | AJ36: =AF36-AG36-AH36+AI36 -> 111055.433
A37: I60U080OG
A38: PIPE (PE80)
A39: P54A001A | B39: 108610 | C39: 1000 | D39: 2310.07 | E39: =(B39-C39-D39)*12.36% -> 13015.07135 | F39: =B39-C39-D39+E39 -> 118315.0013 | G39: 108620 | H39: 1000 | I39: 2310.29 | J39: =(G39-H39-I39)*12.36% -> 13016.28016 | K39: =G39-H39-I39+J39 -> 118325.9902 | L39: 108030 | M39: 1000 | N39: 2297.32 | O39: =(L39-M39-N39)*12.36% -> 12944.95925 | P39: =L39-M39-N39+O39 -> 117677.6392 | Q39: 109060 | R39: 1000 | S39: 2319.96 | T39: =(Q39-R39-S39)*12.36% -> 13069.46894 | U39: =Q39-R39-S39+T39 -> 118809.5089 | V39: 110200 | W39: 1000 | X39: 2345.01 | Y39: =(V39-W39-X39)*12.36% -> 13207.27676 | Z39: =V39-W39-X39+Y39 -> 120062.2668 | AA39: 108670 | AB39: 1000 | AC39: 2311.39 | AD39: =(AA39-AB39-AC39)*12.36% -> 13022.3242 | AE39: =AA39-AB39-AC39+AD39 -> 118380.9342 | AF39: 108150 | AG39: 1000 | AH39: 2299.96 | AI39: =(AF39-AG39-AH39)*12.36% -> 12959.46494 | AJ39: =AF39-AG39-AH39+AI39 -> 117809.5049
A40: PIPE (PE100)
A41: P52A003A | B41: 110610 | C41: 1000 | D41: 2354.02 | E41: =(B41-C41-D41)*12.36% -> 13256.83913 | F41: =B41-C41-D41+E41 -> 120512.8191 | G41: 110620 | H41: 1000 | I41: 2354.24 | J41: =(G41-H41-I41)*12.36% -> 13258.04794 | K41: =G41-H41-I41+J41 -> 120523.8079 | L41: 110030 | M41: 1000 | N41: 2341.28 | O41: =(L41-M41-N41)*12.36% -> 13186.72579 | P41: =L41-M41-N41+O41 -> 119875.4458 | Q41: 111060 | R41: 1000 | S41: 2363.91 | T41: =(Q41-R41-S41)*12.36% -> 13311.23672 | U41: =Q41-R41-S41+T41 -> 121007.3267 | V41: 112200 | W41: 1000 | X41: 2388.97 | Y41: =(V41-W41-X41)*12.36% -> 13449.04331 | Z41: =V41-W41-X41+Y41 -> 122260.0733 | AA41: 110670 | AB41: 1000 | AC41: 2355.34 | AD41: =(AA41-AB41-AC41)*12.36% -> 13264.09198 | AE41: =AA41-AB41-AC41+AD41 -> 120578.752 | AF41: 110150 | AG41: 1000 | AH41: 2343.91 | AI41: =(AF41-AG41-AC41)*12.36% -> 13199.81998 | AJ41: =AF41-AG41-AC41+AI41 -> 119994.48
A42: RAFFIA
A43: W50A009A | B43: 105720 | C43: 1000 | D43: 2213.59 | E43: =(B43-C43-D43)*12.36% -> 12669.79228 | F43: =B43-C43-D43+E43 -> 115176.2023 | G43: 105720 | H43: 1000 | I43: 2213.59 | J43: =(G43-H43-I43)*12.36% -> 12669.79228 | K43: =G43-H43-I43+J43 -> 115176.2023 | L43: 105060 | M43: 1000 | N43: 2199.08 | O43: =(L43-M43-N43)*12.36% -> 12590.00971 | P43: =L43-M43-N43+O43 -> 114450.9297 | Q43: 106160 | R43: 1000 | S43: 2223.26 | T43: =(Q43-R43-S43)*12.36% -> 12722.98106 | U43: =Q43-R43-S43+T43 -> 115659.7211 | V43: 107300 | W43: 1000 | X43: 2248.31 | Y43: =(V43-W43-X43)*12.36% -> 12860.78888 | Z43: =V43-W43-X43+Y43 -> 116912.4789 | AA43: 105790 | AB43: 1000 | AC43: 2215.12 | AD43: =(AA43-AB43-AC43)*12.36% -> 12678.25517 | AE43: =AA43-AB43-AC43+AD43 -> 115253.1352 | AF43: 105150 | AG43: 1000 | AH43: 2201.06 | AI43: =(AF43-AG43-AH43)*12.36% -> 12600.88898 | AJ43: =AF43-AG43-AH43+AI43 -> 114549.829
A44: T50A010A | B44: 105220 | C44: 1000 | D44: 2202.6 | E44: =(B44-C44-D44)*12.36% -> 12609.35064 | F44: =B44-C44-D44+E44 -> 114626.7506 | G44: 105220 | H44: 1000 | I44: 2202.6 | J44: =(G44-H44-I44)*12.36% -> 12609.35064 | K44: =G44-H44-I44+J44 -> 114626.7506 | L44: 104560 | M44: 1000 | N44: 2188.09 | O44: =(L44-M44-N44)*12.36% -> 12529.56808 | P44: =L44-M44-N44+O44 -> 113901.4781 | Q44: 105660 | R44: 1000 | S44: 2212.27 | T44: =(Q44-R44-S44)*12.36% -> 12662.53943 | U44: =Q44-R44-S44+T44 -> 115110.2694 | V44: 106800 | W44: 1000 | X44: 2237.32 | Y44: =(V44-W44-X44)*12.36% -> 12800.34725 | Z44: =V44-W44-X44+Y44 -> 116363.0272 | AA44: 105290 | AB44: 1000 | AC44: 2204.14 | AD44: =(AA44-AB44-AC44)*12.36% -> 12617.8123 | AE44: =AA44-AB44-AC44+AD44 -> 114703.6723 | AF44: 104650 | AG44: 1000 | AH44: 2190.07 | AI44: =(AF44-AG44-AH44)*12.36% -> 12540.44735 | AJ44: =AF44-AG44-AH44+AI44 -> 114000.3773
A45: MF
A46: W52A009A | B46: 101220 | C46: 1000 | D46: 2202.6 | E46: =(B46-C46-D46)*12.36% -> 12114.95064 | F46: =B46-C46-D46+E46 -> 110132.3506 | G46: 101220 | H46: 1000 | I46: 2202.6 | J46: =(G46-H46-I46)*12.36% -> 12114.95064 | K46: =G46-H46-I46+J46 -> 110132.3506 | L46: 100560 | M46: 1000 | N46: 2188.09 | O46: =(L46-M46-N46)*12.36% -> 12035.16808 | P46: =L46-M46-N46+O46 -> 109407.0781 | Q46: 101660 | R46: 1000 | S46: 2212.27 | T46: =(Q46-R46-S46)*12.36% -> 12168.13943 | U46: =Q46-R46-S46+T46 -> 110615.8694 | V46: 102800 | W46: 1000 | X46: 2237.32 | Y46: =(V46-W46-X46)*12.36% -> 12305.94725 | Z46: =V46-W46-X48+Y46 -> 111868.6272 | AA46: 101290 | AB46: 1000 | AC46: 2204.14 | AD46: =(AA46-AB46-AC46)*12.36% -> 12123.4123 | AE46: =AA46-AB46-AC48+AD46 -> 110209.2723 | AF46: 100650 | AG46: 1000 | AH46: 2190.07 | AI46: =(AF46-AG46-AH46)*12.36% -> 12046.04735 | AJ46: =AF46-AG46-AH46+AI46 -> 109505.9773
A47: W52A009OG
A48: W52ASR009A | B48: 101220 | C48: 1000 | D48: 2202.6 | E48: =(B48-C48-D48)*12.36% -> 12114.95064 | F48: =B48-C48-D48+E48 -> 110132.3506 | G48: 101220 | H48: 1000 | I48: 2202.6 | J48: =(G48-H48-I48)*12.36% -> 12114.95064 | K48: =G48-H48-I48+J48 -> 110132.3506 | L48: 100560 | M48: 1000 | N48: 2188.09 | O48: =(L48-M48-N48)*12.36% -> 12035.16808 | P48: =L48-M48-N48+O48 -> 109407.0781 | Q48: 101660 | R48: 1000 | S48: 2212.27 | T48: =(Q48-R48-S48)*12.36% -> 12168.13943 | U48: =Q48-R48-S48+T48 -> 110615.8694 | V48: 102800 | W48: 1000 | X48: 2237.32 | Y48: =(V48-W48-X48)*12.36% -> 12305.94725 | Z48: =V48-W48-X50+Y48 -> 114105.9472 | AA48: 101290 | AB48: 1000 | AC48: 2204.14 | AD48: =(AA48-AB48-AC48)*12.36% -> 12123.4123 | AE48: =AA48-AB48-AC50+AD48 -> 112413.4123 | AF48: 100650 | AG48: 1000 | AH48: 2190.07 | AI48: =(AF48-AG48-AH48)*12.36% -> 12046.04735 | AJ48: =AF48-AG48-AH48+AI48 -> 109505.9773
A49: W55A004A | B49: 104220 | C49: 1000 | D49: 2268.53 | E49: =(B49-C49-D49)*12.36% -> 12477.60169 | F49: =B49-C49-D49+E49 -> 113429.0717 | G49: 104220 | H49: 1000 | I49: 2268.53 | J49: =(G49-H49-I49)*12.36% -> 12477.60169 | K49: =G49-H49-I49+J49 -> 113429.0717 | L49: 103560 | M49: 1000 | N49: 2254.02 | O49: =(L49-M49-N49)*12.36% -> 12397.81913 | P49: =L49-M49-N49+O49 -> 112703.7991 | Q49: 104660 | R49: 1000 | S49: 2278.2 | T49: =(Q49-R49-S49)*12.36% -> 12530.79048 | U49: =Q49-R49-S49+T49 -> 113912.5905 | V49: 105800 | W49: 1000 | X49: 2303.25 | Y49: =(V49-W49-X49)*12.36% -> 12668.5983 | Z49: =V49-W49-X49+Y49 -> 115165.3483 | AA49: 104290 | AB49: 1000 | AC49: 2270.07 | AD49: =(AA49-AB49-AC49)*12.36% -> 12486.06335 | AE49: =AA49-AB49-AC51+AD49 -> 113544.2333 | AF49: 103650 | AG49: 1000 | AH49: 2256 | AI49: =(AF49-AG49-AH49)*12.36% -> 12408.6984 | AJ49: =AF49-AG49-AH49+AI49 -> 112802.6984
A50: LLDPE
A51: E20AN009A | B51: 102480 | C51: 1000 | D51: 2230.29 | E51: =(B51-C51-D51)*12.36% -> 12267.26416 | F51: =B51-C51-D51+E51 -> 111516.9742 | G51: 102480 | H51: 1000 | I51: 2230.29 | J51: =(G51-H51-I51)*12.36% -> 12267.26416 | K51: =G51-H51-I51+J51 -> 111516.9742 | L51: 101830 | M51: 1000 | N51: 2304.79 | O51: =(L51-M51-N51)*12.36% -> 12177.71596 | P51: =L51-M51-N51+O51 -> 110702.926 | Q51: 102920 | R51: 1000 | S51: 2239.96 | T51: =(Q51-R51-S51)*12.36% -> 12320.45294 | U51: =Q51-R51-S51+T51 -> 112000.4929 | V51: 104070 | W51: 1000 | X51: 2265.23 | Y51: =(V51-W51-X51)*12.36% -> 12459.46957 | Z51: =V51-W51-X51+Y51 -> 113264.2396 | AA51: 102550 | AB51: 1000 | AC51: 2231.83 | AD51: =(AA51-AB51-AC51)*12.36% -> 12275.72581 | AE51: =AA51-AB51-AC51+AD51 -> 111593.8958 | AF51: 101910 | AG51: 1000 | AH51: 2217.76 | AI51: =(AF51-AG51-AH51)*12.36% -> 12198.36086 | AJ51: =AF51-AG51-AH51+AI51 -> 110890.6009
A52: E20AN009OG
A53: E36A060A | B53: 106520 | C53: 1000 | D53: 2319.08 | E53: =(B53-C53-D53)*12.36% -> 12755.63371 | F53: =B53-C53-D53+E53 -> 115956.5537 | G53: 106520 | H53: 1000 | I53: 2319.08 | J53: =(G53-H53-I53)*12.36% -> 12755.63371 | K53: =G53-H53-I53+J53 -> 115956.5537 | L53: 105870 | M53: 1000 | N53: 2204.14 | O53: =(L53-M53-N53)*12.36% -> 12689.5003 | P53: =L53-M53-N53+O53 -> 115355.3603 | Q53: 106970 | R53: 1000 | S53: 2328.97 | T53: =(Q53-R53-S53)*12.36% -> 12810.03131 | U53: =Q53-R53-S53+T53 -> 116451.0613 | V53: 108110 | W53: 1000 | X53: 2354.02 | Y53: =(V53-W53-X53)*12.36% -> 12947.83913 | Z53: =V53-W53-X53+Y53 -> 117703.8191 | AA53: 106590 | AB53: 1000 | AC53: 2320.62 | AD53: =(AA53-AB53-AC53)*12.36% -> 12764.09537 | AE53: =AA53-AB53-AC53+AD53 -> 116033.4754 | AF53: 105950 | AG53: 1000 | AH53: 2306.55 | AI53: =(AF53-AG53-AH53)*12.36% -> 12686.73042 | AJ53: =AF53-AG53-AH53+AI53 -> 115330.1804
A54: E36A060OG
A55: FILM
A56: F20S009A | B56: 106980 | C56: 1000 | D56: 2263.25 | E56: =(B56-C56-D56)*12.36% -> 12819.3903 | F56: =B56-C56-D56+E56 -> 116536.1403 | G56: 103980 | H56: 1000 | I56: 2263.25 | J56: =(G56-H56-I56)*12.36% -> 12448.5903 | K56: =G56-H56-I56+J56 -> 113165.3403 | L56: 103330 | M56: 1000 | N56: 2248.97 | O56: =(L56-M56-N56)*12.36% -> 12370.01531 | P56: =L56-M56-N56+O56 -> 112451.0453 | Q56: 104420 | R56: 1000 | S56: 2272.93 | T56: =(Q56-R56-S56)*12.36% -> 12501.77785 | U56: =Q56-R56-S56+T56 -> 113648.8479 | V56: 105570 | W56: 1000 | X56: 2298.2 | Y56: =(V56-W56-X56)*12.36% -> 12640.79448 | Z56: =V56-W56-X56+Y56 -> 114912.5945 | AA56: 104050 | AB56: 1000 | AC56: 2264.79 | AD56: =(AA56-AB56-AC56)*12.36% -> 12457.05196 | AE56: =AA56-AB56-AC56+AD56 -> 113242.262 | AF56: 103410 | AG56: 1000 | AH56: 2250.73 | AI56: =(AF56-AG56-AH56)*12.36% -> 12379.68577 | AJ56: =AF56-AG56-AH56+AI56 -> 112538.9558
A57: F20S009OG
A58: D22S010A | B58: 102980 | C58: 1000 | D58: 2241.28 | E58: =(B58-C58-D58)*12.36% -> 12327.70579 | F58: =B58-C58-D58+E58 -> 112066.4258 | G58: 102980 | H58: 1000 | I58: 2241.28 | J58: =(G58-H58-I58)*12.36% -> 12327.70579 | K58: =G58-H58-I58+J58 -> 112066.4258 | L58: 102330 | M58: 1000 | N58: 2226.99 | O58: =(L58-M58-N58)*12.36% -> 12249.13204 | P58: =L58-M58-N58+O58 -> 111352.142 | Q58: 103420 | R58: 1000 | S58: 2250.95 | T58: =(Q58-R58-S58)*12.36% -> 12380.89458 | U58: =Q58-R58-S58+T58 -> 112549.9446 | V58: 104570 | W58: 1000 | X58: 2276.22 | Y58: =(V58-W58-X58)*12.36% -> 12519.91121 | Z58: =V58-W58-X58+Y58 -> 113813.6912 | AA58: 103050 | AB58: 1000 | AC58: 2242.82 | AD58: =(AA58-AB58-AC58)*12.36% -> 12336.16745 | AE58: =AA58-AB58-AC58+AD58 -> 112143.3474 | AF58: 102410 | AG58: 1000 | AH58: 2228.75 | AI58: =(AF58-AG58-AH58)*12.36% -> 12258.8025 | AJ58: =AF58-AG58-AH58+AI58 -> 111440.0525
A59: ROTO
A60: R35A042A | B60: 103500 | C60: 1000 | D60: 2252.61 | E60: =(B60-C60-D60)*12.36% -> 12390.5774 | F60: =B60-C60-D60+E60 -> 112637.9674 | G60: 103510 | H60: 1000 | I60: 2252.93 | J60: =(G60-H60-I60)*12.36% -> 12391.77385 | K60: =G60-H60-I60+J60 -> 112648.8439 | L60: 102920 | M60: 1000 | N60: 2239.96 | O60: =(L60-M60-N60)*12.36% -> 12320.45294 | P60: =L60-M60-N60+O60 -> 112000.4929 | Q60: 103950 | R60: 1000 | S60: 2262.6 | T60: =(Q60-R60-S60)*12.36% -> 12444.96264 | U60: =Q60-R60-S60+T60 -> 113132.3626 | V60: 105090 | W60: 1000 | X60: 2287.65 | Y60: =(V60-W60-X60)*12.36% -> 12582.77046 | Z60: =V60-W60-X60+Y60 -> 114385.1205 | AA60: 103560 | AB60: 1000 | AC60: 2254.02 | AD60: =(AA60-AB60-AC60)*12.36% -> 12397.81913 | AE60: =AA60-AB60-AC60+AD60 -> 112703.7991 | AF60: 103040 | AG60: 1000 | AH60: 2242.6 | AI60: =(AF60-AG60-AH60)*12.36% -> 12334.95864 | AJ60: =AF60-AG60-AH60+AI60 -> 112132.3586
A61: R35U042A | B61: 104360 | C61: 1000 | D61: 2271.61 | E61: =(B61-C61-D61)*12.36% -> 12494.525 | F61: =B61-C61-D61+E61 -> 113582.915 | G61: 104370 | H61: 1000 | I61: 2271.83 | J61: =(G61-H61-I61)*12.36% -> 12495.73381 | K61: =G61-H61-I61+J61 -> 113593.9038 | L61: 103780 | M61: 1000 | N61: 2258.86 | O61: =(L61-M61-N61)*12.36% -> 12424.4129 | P61: =L61-M61-N61+O61 -> 112945.5529 | Q61: 104810 | R61: 1000 | S61: 2281.5 | T61: =(Q61-R61-S61)*12.36% -> 12548.9226 | U61: =Q61-R61-S61+T61 -> 114077.4226 | V61: 105950 | W61: 1000 | X61: 2306.55 | Y61: =(V61-W61-X61)*12.36% -> 12686.73042 | Z61: =V61-W61-X61+Y61 -> 115330.1804 | AA61: 104420 | AB61: 1000 | AC61: 2272.93 | AD61: =(AA61-AB61-AC61)*12.36% -> 12501.77785 | AE61: =AA61-AB61-AC61+AD61 -> 113648.8479 | AF61: 103900 | AG61: 1000 | AH61: 2261.5 | AI61: =(AF61-AG61-AH61)*12.36% -> 12438.9186 | AJ61: =AF61-AG61-AH61+AI61 -> 113077.4186
Z62: .
A63: NOTE : | B63: NOTE : | C63: THE PRICES OF OLD PLANT & NEW PLANT ARE SAME FROM DIRECT SALE

Sheet Sheet2
A2: UNITED BROTHERS
A3: CONSIGNMENT STOCKIST OF GAIL (INDIA) LTD
A4: 301,HERITAGE PLAZA, R.S.MAHARAJ MARG,( TELI GALLI CROSS LANE), ANDHERI (E), MUMBAI - 400 069
A5: EL: 26844612(4 LINES) FAX: 26822914 E-MAIL: info@unibrothers.com, prashant@unibrothers.com,jyoti@unibrotehers.com
A6: EX-WORKS PRICE OF HDPE "G-LEX / G-LENE " W.E.F. 19th DECEMBER 2013
A7: CASH / ADVANCE PAYMENT FOR MAHARASHTRA & DAMAN
B8: Freight | D8: 2926.19 | G8: Freight | I8: 1900.2 | L8: Freight | N8: 2517.33 | Q8: Freight | S8: 2693.7 | V8: Freight | X8: 2176.61 | AA8: Freight | AC8: 3016.38 | AF8: Freight 1986.51 | AG8: 2332.94 | AK8: FREIGHT | AL8: 2683.68
B9: SANGLI | G9: UMBERGAON | L9: PUNE | Q9: WAI | V9: NASIK | AA9: KOLHAPUR | AF9: AHMEDNAGAR | AK9: ROHA
B10: BASIC | C10: DISC | D10: LOC | E10: EXCISE | F10: EX-WKS | G10: BASIC | H10: DISC | I10: LOC | J10: EXCISE | K10: EX-WKS | L10: BASIC | M10: DISC | N10: LOC | O10: EXCISE | P10: EX-WKS | Q10: BASIC | R10: DISC | S10: LOC | T10: EXCISE | U10: EX-WKS | V10: BASIC | W10: DISC | X10: LOC | Y10: EXCISE | Z10: EX-WKS | AA10: BASIC | AB10: DISC | AC10: LOC | AD10: EXCISE | AE10: EX-WKS | AF10: BASIC | AG10: DISC | AH10: LOC | AI10: EXCISE | AJ10: EX-WKS | AL10: DISC | AM10: LOC | AN10: EXCISE | AO10: EX-WKS
A11: BM
A12: B52A003A | B12: 101280 | C12: 1000 | D12: 2203.92 | E12: =(B12-C12-D12)*12.36% -> 12122.20349 | F12: =B12-C12-D12+E12 -> 110198.2835 | G12: 101720 | H12: 1000 | I12: 2213.59 | J12: =(G12-H12-I12)*12.36% -> 12175.39228 | K12: =G12-H12-I12+J12 -> 110681.8023 | L12: 101260 | M12: 1000 | N12: 2203.48 | O12: =(L12-M12-N12)*12.36% -> 12119.78587 | P12: =L12-M12-N12+O12 -> 110176.3059 | Q12: 101260 | R12: 1000 | S12: 2203.48 | T12: =(Q12-R12-S12)*12.36% -> 12119.78587 | U12: =Q12-R12-S12+T12 -> 110176.3059 | V12: 101690 | W12: 1000 | X12: 2212.93 | Y12: =(V12-W12-X12)*12.36% -> 12171.76585 | Z12: =V12-W12-X12+Y12 -> 110648.8359 | AA12: 101110 | AB12: 1000 | AC12: 2200.18 | AD12: =(AA12-AB12-AC12)*12.36% -> 12101.65375 | AE12: =AA12-AB12-AC12+AD12 -> 110011.4738 | AF12: 101910 | AG12: 1000 | AH12: 2217.76 | AI12: =(AF13-AG12-AH12)*12.36% -> 12198.36086 | AJ12: =AF13-AG12-AH12+AI12 -> 110890.6009 | AK12: 101690 | AL12: 1000 | AM12: 2212.93 | AN12: =(AK12-AL12-AM12)*12.36% -> 12171.76585 | AO12: =AK12-AL12-AM12+AN12 -> 110648.8359
A13: B63A003A | B13: 101280 | C13: 1000 | D13: 2203.92 | E13: =(B13-C13-D13)*12.36% -> 12122.20349 | F13: =B13-C13-D13+E13 -> 110198.2835 | G13: 101720 | H13: 1000 | I13: 2213.59 | J13: =(G13-H13-I13)*12.36% -> 12175.39228 | K13: =G13-H13-I13+J13 -> 110681.8023 | L13: 101260 | M13: 1000 | N13: 2203.48 | O13: =(L13-M13-N13)*12.36% -> 12119.78587 | P13: =L13-M13-N13+O13 -> 110176.3059 | Q13: 101260 | R13: 1000 | S13: 2203.48 | T13: =(Q13-R13-S13)*12.36% -> 12119.78587 | U13: =Q13-R13-S13+T13 -> 110176.3059 | V13: 101690 | W13: 1000 | X13: 2212.93 | Y13: =(V13-W13-X13)*12.36% -> 12171.76585 | Z13: =V13-W13-X13+Y13 -> 110648.8359 | AA13: 101110 | AB13: 1000 | AC13: 2200.18 | AD13: =(AA13-AB13-AC13)*12.36% -> 12101.65375 | AE13: =AA13-AB13-AC13+AD13 -> 110011.4738 | AF13: 101910 | AG13: 1000 | AH13: 2217.76 | AI13: =(AF14-AG13-AH13)*12.36% -> 12692.76086 | AJ13: =AF14-AG13-AH13+AI13 -> 115385.0009 | AK13: 101690 | AL13: 1000 | AM13: 2212.93 | AN13: =(AK13-AL13-AM13)*12.36% -> 12171.76585 | AO13: =AK13-AL13-AM13+AN13 -> 110648.8359
A14: B55HM0003A | B14: 105390 | C14: 1000 | D14: 2294.24 | E14: =(B14-C14-D14)*12.36% -> 12619.03594 | F14: =B14-C14-D14+E14 -> 114714.7959 | G14: 106090 | H14: 1000 | I14: 2309.63 | J14: =(G14-H14-I14)*12.36% -> 12703.65373 | K14: =G14-H14-I14+J14 -> 115484.0237 | L14: 105290 | M14: 1000 | N14: 2292.05 | O14: =(L14-M14-N14)*12.36% -> 12606.94662 | P14: =L14-M14-N14+O14 -> 114604.8966 | Q14: 105290 | R14: 1000 | S14: 2292.05 | T14: =(Q14-R14-S14)*12.36% -> 12606.94662 | U14: =Q14-R14-S14+T14 -> 114604.8966 | V14: 105640 | W14: 1000 | X14: 2299.74 | Y14: =(V14-W14-X14)*12.36% -> 12649.25614 | Z14: =V14-W14-X14+Y14 -> 114989.5161 | AA14: 105080 | AB14: 1000 | AC14: 2287.43 | AD14: =(AA14-AB14-AC14)*12.36% -> 12581.56165 | AE14: =AA14-AB14-AC14+AD14 -> 114374.1317 | AF14: 105910 | AG14: 1000 | AH14: 2305.67 | AI14: =(AF14-AG14-AH14)*12.36% -> 12681.89519 | AJ14: =AF14-AG14-AH14+AI14 -> 115286.2252 | AK14: 105640 | AL14: 1000 | AM14: 2299.74 | AN14: =(AK14-AL14-AM14)*12.36% -> 12649.25614 | AO14: =AK14-AL14-AM14+AN14 -> 114989.5161
A15: B53EA0035A | G15: 102220 | H15: 1000 | I15: 2224.57 | J15: =(G15-H15-I15)*12.36% -> 12235.83515 | K15: =G15-H15-I15+J15 -> 111231.2651
A16: CABLE-INSUL
A17: C43D006A | B17: 100314 | C17: 1000 | D17: 2182.67 | E17: =(B17-C17-D17)*12.36% -> 12005.43239 | F17: =B17-C17-D17+E17 -> 109136.7624 | G17: 100336 | H17: 1000 | I17: 2183.17 | J17: =(G17-H17-I17)*12.36% -> 12008.08979 | K17: =G17-H17-I17+J17 -> 109160.9198 | L17: 100285 | M17: 1000 | N17: 2182.05 | O17: =(L17-M17-N17)*12.36% -> 12001.92462 | P17: =L17-M17-N17+O17 -> 109104.8746 | Q17: 100285 | R17: 1000 | S17: 2182.05 | T17: =(Q17-R17-S17)*12.36% -> 12001.92462 | U17: =Q17-R17-S17+T17 -> 109104.8746 | V17: 100675 | W17: 1000 | X17: 2190.61 | Y17: =(V17-W17-X17)*12.36% -> 12049.0706 | Z17: =V17-W17-X17+Y17 -> 109533.4606 | AA17: 100124 | AB17: 1000 | AC17: 2178.5 | AD17: =(AA17-AB17-AC17)*12.36% -> 11982.4638 | AE17: =AA17-AB17-AC17+AD17 -> 108927.9638 | AF17: 100922 | AG17: 1000 | AH17: 2196.04 | AI17: =(AF17-AG17-AH17)*12.36% -> 12078.92866 | AJ17: =AF17-AG17-AH17+AI17 -> 109804.8887 | AK17: 100675 | AL17: 1000 | AM17: 2190.61 | AN17: =(AK17-AL17-AM17)*12.36% -> 12049.0706 | AO17: =AK17-AL17-AM17+AN17 -> 109533.4606
A19: SHETG
A20: E45A003A | B20: 101380 | C20: 1000 | D20: 2206.11 | E20: =(B20-C20-D20)*12.36% -> 12134.2928 | F20: =B20-C20-D20+E20 -> 110308.1828 | G20: 101580 | H20: 1000 | I20: 2210.51 | J20: =(G20-H20-I20)*12.36% -> 12158.46896 | K20: =G20-H20-I20+J20 -> 110527.959 | L20: 101350 | M20: 1000 | N20: 2205.45 | O20: =(L20-M20-N20)*12.36% -> 12130.66638 | P20: =L20-M20-N20+O20 -> 110275.2164 | Q20: 101350 | R20: 1000 | S20: 2205.45 | T20: =(Q20-R20-S20)*12.36% -> 12130.66638 | U20: =Q20-R20-S20+T20 -> 110275.2164 | V20: 101750 | W20: 1000 | X20: 2214.24 | Y20: =(V20-W20-X20)*12.36% -> 12179.01994 | Z20: =V20-W20-X20+Y20 -> 110714.7799 | AA20: 101180 | AB20: 1000 | AC20: 2201.72 | AD20: =(AA20-AB20-AC20)*12.36% -> 12110.11541 | AE20: =AA20-AB20-AC20+AD20 -> 110088.3954 | AF20: 102020 | AG20: 1000 | AH20: 2220.18 | AI20: =(AF20-AG20-AH20)*12.36% -> 12211.65775 | AJ20: =AF20-AG20-AH20+AI20 -> 111011.4778 | AK20: 101750 | AL20: 1000 | AM20: 2214.24 | AN20: =(AK20-AL20-AM20)*12.36% -> 12179.01994 | AO20: =AK20-AL20-AM20+AN20 -> 110714.7799
A21: E45A003OG
A22: EXTR
A23: E52A003A | B23: 102550 | C23: 1000 | D23: 2231.83 | E23: =(B23-C23-D23)*12.36% -> 12275.72581 | F23: =B23-C23-D23+E23 -> 111593.8958 | G23: 103180 | H23: 1000 | I23: 2245.67 | J23: =(G23-H23-I23)*12.36% -> 12351.88319 | K23: =G23-H23-I23+J23 -> 112286.2132 | L23: 102520 | M23: 1000 | N23: 2231.17 | O23: =(L23-M23-N23)*12.36% -> 12272.09939 | P23: =L23-M23-N23+O23 -> 111560.9294 | Q23: 102520 | R23: 1000 | S23: 2231.17 | T23: =(Q23-R23-S23)*12.36% -> 12272.09939 | U23: =Q23-R23-S23+T23 -> 111560.9294 | V23: 102920 | W23: 1000 | X23: 2239.96 | Y23: =(V23-W23-X23)*12.36% -> 12320.45294 | Z23: =V23-W23-X23+Y23 -> 112000.4929 | AA23: 102350 | AB23: 1000 | AC23: 2227.43 | AD23: =(AA23-AB23-AC23)*12.36% -> 12251.54965 | AE23: =AA23-AB23-AC23+AD23 -> 111374.1197 | AF23: 103180 | AG23: 1000 | AH23: 2245.67 | AI23: =(AF23-AG23-AH23)*12.36% -> 12351.88319 | AJ23: =AF23-AG23-AH23+AI23 -> 112286.2132 | AK23: 102920 | AL23: 1000 | AM23: 2239.96 | AN23: =(AK23-AL23-AM23)*12.36% -> 12320.45294 | AO23: =AK23-AL23-AM23+AN23 -> 112000.4929
A24: E52A003OG
A25: E52U003A | B25: 106330 | C25: 1000 | D25: 2259.96 | E25: =(B25-C25-D25)*12.36% -> 12739.45694 | F25: =B25-C25-D25+E25 -> 115809.4969 | G25: 106960 | H25: 1000 | I25: 2273.8 | J25: =(G25-H25-I25)*12.36% -> 12815.61432 | K25: =G25-H25-I25+J25 -> 116501.8143 | L25: 106300 | M25: 1000 | N25: 2259.3 | O25: =(L25-M25-N25)*12.36% -> 12735.83052 | P25: =L25-M25-N25+O25 -> 115776.5305 | Q25: 106300 | R25: 1000 | S25: 2259.3 | T25: =(Q25-R25-S25)*12.36% -> 12735.83052 | U25: =Q25-R25-S25+T25 -> 115776.5305 | V25: 106700 | W25: 1000 | X25: 2268.09 | Y25: =(V25-W25-X25)*12.36% -> 12784.18408 | Z25: =V25-W25-X25+Y25 -> 116216.0941 | AA25: 106130 | AB25: 1000 | AC25: 2255.56 | AD25: =(AA25-AB25-AC25)*12.36% -> 12715.28078 | AE25: =AA25-AB25-AC25+AD25 -> 115589.7208 | AF25: 106960 | AG25: 1000 | AH25: 2273.8 | AI25: =(AF25-AG25-AH25)*12.36% -> 12815.61432 | AJ25: =AF25-AG25-AH25+AI25 -> 116501.8143 | AK25: 106700 | AL25: 1000 | AM25: 2268.09 | AN25: =(AK25-AL25-AM25)*12.36% -> 12784.18408 | AO25: =AK25-AL25-AM25+AN25 -> 116216.0941
A26: E52U003OG
A27: HM FILM
A28: F55HM0003A | B28: 102440 | C28: 1000 | D28: 2229.41 | E28: =(B28-C28-D28)*12.36% -> 12262.42892 | F28: =B28-C28-D28+E28 -> 111473.0189 | G28: 102640 | H28: 1000 | I28: 2233.8 | J28: =(G28-H28-I28)*12.36% -> 12286.60632 | K28: =G28-H28-I28+J28 -> 111692.8063 | L28: 102340 | M28: 1000 | N28: 2227.21 | O28: =(L28-M28-N28)*12.36% -> 12250.34084 | P28: =L28-M28-N28+O28 -> 111363.1308 | Q28: 102340 | R28: 1000 | S28: 2227.21 | T28: =(Q28-R28-S28)*12.36% -> 12250.34084 | U28: =Q28-R28-S28+T28 -> 111363.1308 | V28: 102690 | W28: 1000 | X28: 2234.9 | Y28: =(V28-W28-X28)*12.36% -> 12292.65036 | Z28: =V28-W28-X28+Y28 -> 111747.7504 | AA28: 102130 | AB28: 1000 | AC28: 2222.6 | AD28: =(AA28-AB28-AC28)*12.36% -> 12224.95464 | AE28: =AA28-AB28-AC28+AD28 -> 111132.3546 | AF28: 102960 | AG28: 1000 | AH28: 2240.84 | AI28: =(AF28-AG28-AH28)*12.36% -> 12325.28818 | AJ28: =AF28-AG28-AH28+AI28 -> 112044.4482 | AK28: 102690 | AL28: 1000 | AM28: 2234.9 | AN28: =(AK28-AL28-AM28)*12.36% -> 12292.65036 | AO28: =AK28-AL28-AM28+AN28 -> 111747.7504
A29: F55HM0003OG
A30: IM HIGH
A31: I50A180A | B31: 99340 | C31: 1000 | D31: 2161.28 | E31: =(B31-C31-D31)*12.36% -> 11887.68979 | F31: =B31-C31-D31+E31 -> 108066.4098 | G31: 99440 | H31: 1000 | I31: 2163.48 | J31: =(G31-H31-I31)*12.36% -> 11899.77787 | K31: =G31-H31-I31+J31 -> 108176.2979 | L31: 99220 | M31: 1000 | N31: 2158.64 | O31: =(L31-M31-N31)*12.36% -> 11873.1841 | P31: =L31-M31-N31+O31 -> 107934.5441 | Q31: 99220 | R31: 1000 | S31: 2158.64 | T31: =(Q31-R31-S31)*12.36% -> 11873.1841 | U31: =Q31-R31-S31+T31 -> 107934.5441 | V31: 99540 | W31: 1000 | X31: 2165.67 | Y31: =(V31-W31-X31)*12.36% -> 11911.86719 | Z31: =V31-W31-X31+Y31 -> 108286.1972 | AA31: 99060 | AB31: 1000 | AC31: 2155.13 | AD31: =(AA31-AB31-AC31)*12.36% -> 11853.84193 | AE31: =AA31-AB31-AC31+AD31 -> 107758.7119 | AF31: 99800 | AG31: 1000 | AH31: 2171.39 | AI31: =(AF31-AG31-AH31)*12.36% -> 11943.2962 | AJ31: =AF31-AG31-AH31+AI31 -> 108571.9062 | AK31: 99540 | AL31: 1000 | AM31: 2165.67 | AN31: =(AK31-AL31-AM31)*12.36% -> 11911.86719 | AO31: =AK31-AL31-AM31+AN31 -> 108286.1972
A32: I50A180OG
A33: IM LOW
A34: I60A080A | B34: 100520 | C34: 1000 | D34: 2187.21 | E34: =(B34-C34-D34)*12.36% -> 12030.33284 | F34: =B34-C34-D34+E34 -> 109363.1228 | G34: 100680 | H34: 1000 | I34: 2190.73 | J34: =(G34-H34-I34)*12.36% -> 12049.67377 | K34: =G34-H34-I34+J34 -> 109538.9438 | L34: 100500 | M34: 1000 | N34: 2186.77 | O34: =(L34-M34-N34)*12.36% -> 12027.91523 | P34: =L34-M34-N34+O34 -> 109341.1452 | Q34: 100500 | R34: 1000 | S34: 2186.77 | T34: =(Q34-R34-S34)*12.36% -> 12027.91523 | U34: =Q34-R34-S34+T34 -> 109341.1452 | V34: 100900 | W34: 1000 | X34: 2195.56 | Y34: =(V34-W34-X34)*12.36% -> 12076.26878 | Z34: =V34-W34-X34+Y34 -> 109780.7088 | AA34: 100330 | AB34: 1000 | AC34: 2183.04 | AD34: =(AA34-AB34-AC34)*12.36% -> 12007.36426 | AE34: =AA34-AB34-AC34+AD34 -> 109154.3243 | AF34: 100160 | AG34: 1000 | AH34: 2201.28 | AI34: =(AF34-AG34-AH34)*12.36% -> 11984.09779 | AJ34: =AF34-AG34-AH34+AI34 -> 108942.8178 | AK34: 100900 | AL34: 1000 | AM34: 2195.56 | AN34: =(AK34-AL34-AM34)*12.36% -> 12076.26878 | AO34: =AK34-AL34-AM34+AN34 -> 109780.7088
A35: I60A080OG
A36: IM-L-UV
A37: I60U080A | B37: 102060 | C37: 1000 | D37: 2221.06 | E37: =(B37-C37-D37)*12.36% -> 12216.49298 | F37: =B37-C37-D37+E37 -> 111055.433 | G37: 102180 | H37: 1000 | I37: 2223.7 | J37: =(G37-H37-I37)*12.36% -> 12230.99868 | K37: =G37-H37-I37+J37 -> 111187.2987 | L37: 102030 | M37: 1000 | N37: 2220.4 | O37: =(L37-M37-N37)*12.36% -> 12212.86656 | P37: =L37-M37-N37+O37 -> 111022.4666 | Q37: 102030 | R37: 1000 | S37: 2220.4 | T37: =(Q37-R37-S37)*12.36% -> 12212.86656 | U37: =Q37-R37-S37+T37 -> 111022.4666 | V37: 102430 | W37: 1000 | X37: 2229.19 | Y37: =(V37-W37-X37)*12.36% -> 12261.22012 | Z37: =V37-W37-X37+Y37 -> 111462.0301 | AA37: 101860 | AB37: 1000 | AC37: 2216.66 | AD37: =(AA37-AB37-AC37)*12.36% -> 12192.31682 | AE37: =AA37-AB37-AC37+AD37 -> 110835.6568 | AF37: 102700 | AG37: 1000 | AH37: 2235.12 | AI37: =(AF37-AG37-AH37)*12.36% -> 12293.85917 | AJ37: =AF37-AG37-AH37+AI37 -> 111758.7392 | AK37: 102430 | AL37: 1000 | AM37: 2229.19 | AN37: =(AK37-AL37-AM37)*12.36% -> 12261.22012 | AO37: =AK37-AL37-AM37+AN37 -> 111462.0301
A38: I60U080OG
A39: PIPE (PE80)
A40: P54A001A | B40: 108150 | C40: 1000 | D40: 2299.96 | E40: =(B40-C40-D40)*12.36% -> 12959.46494 | F40: =B40-C40-D40+E40 -> 117809.5049 | G40: 108850 | H40: 1000 | I40: 2315.34 | J40: =(G40-H40-I40)*12.36% -> 13044.08398 | K40: =G40-H40-I40+J40 -> 118578.744 | L40: 108050 | M40: 1000 | N40: 2297.76 | O40: =(L40-M40-N40)*12.36% -> 12947.37686 | P40: =L40-M40-N40+O40 -> 117699.6169 | Q40: 108050 | R40: 1000 | S40: 2297.76 | T40: =(Q40-R40-S40)*12.36% -> 12947.37686 | U40: =Q40-R40-S40+T40 -> 117699.6169 | V40: 108400 | W40: 1000 | X40: 2305.45 | Y40: =(V40-W40-X40)*12.36% -> 12989.68638 | Z40: =V40-W40-X40+Y40 -> 118084.2364 | AA40: 107840 | AB40: 1000 | AC40: 2293.14 | AD40: =(AA40-AB40-AC40)*12.36% -> 12921.9919 | AE40: =AA40-AB40-AC40+AD40 -> 117468.8519 | AF40: 108670 | AG40: 1000 | AH40: 2311.39 | AI40: =(AF40-AG40-AH40)*12.36% -> 13022.3242 | AJ40: =AF40-AG40-AH40+AI40 -> 118380.9342 | AK40: 108400 | AL40: 1000 | AM40: 2305.45 | AN40: =(AK40-AL40-AM40)*12.36% -> 12989.68638 | AO40: =AK40-AL40-AM40+AN40 -> 118084.2364
A41: PIPE (PE100)
A42: P52A003A | B42: 110150 | C42: 1000 | D42: 2343.91 | E42: =(B42-C42-D42)*12.36% -> 13201.23272 | F42: =B42-C42-D42+E42 -> 120007.3227 | G42: 110850 | H42: 1000 | I42: 2359.3 | J42: =(G42-H42-I42)*12.36% -> 13285.85052 | K42: =G42-H42-I42+J42 -> 120776.5505 | L42: 110050 | M42: 1000 | N42: 2341.71 | O42: =(L42-M42-N42)*12.36% -> 13189.14464 | P42: =L42-M42-N42+O42 -> 119897.4346 | Q42: 110050 | R42: 1000 | S42: 2341.71 | T42: =(Q42-R42-S42)*12.36% -> 13189.14464 | U42: =Q42-R42-S42+T42 -> 119897.4346 | V42: 110400 | W42: 1000 | X42: 2349.41 | Y42: =(V42-W42-X42)*12.36% -> 13231.45292 | Z42: =V42-W42-X42+Y42 -> 120282.0429 | AA42: 109840 | AB42: 1000 | AC42: 2337.1 | AD42: =(AA42-AB42-AC42)*12.36% -> 13163.75844 | AE42: =AA42-AB42-AC42+AD42 -> 119666.6584 | AF42: 110670 | AG42: 1000 | AH42: 2355.34 | AI42: =(AF42-AG42-AH42)*12.36% -> 13264.09198 | AJ42: =AF42-AG42-AH42+AI42 -> 120578.752 | AK42: 110400 | AL42: 1000 | AM42: 2349.41 | AN42: =(AK42-AL42-AM42)*12.36% -> 13231.45292 | AO42: =AK42-AL42-AM42+AN42 -> 120282.0429
A43: RAFFIA
A44: W50A009A | B44: 105150 | C44: 1000 | D44: 2201.06 | E44: =(B44-C44-D44)*12.36% -> 12600.88898 | F44: =B44-C44-D44+E44 -> 114549.829 | G44: 105180 | H44: 1000 | I44: 2201.72 | J44: =(G44-H44-I44)*12.36% -> 12604.51541 | K44: =G44-H44-I44+J44 -> 114582.7954 | L44: 105120 | M44: 1000 | N44: 2200.4 | O44: =(L44-M44-N44)*12.36% -> 12597.26256 | P44: =L44-M44-N44+O44 -> 114516.8626 | Q44: 105120 | R44: 1000 | S44: 2200.4 | T44: =(Q44-R44-S44)*12.36% -> 12597.26256 | U44: =Q44-R44-S44+T44 -> 114516.8626 | V44: 105520 | W44: 1000 | X44: 2209.19 | Y44: =(V44-W44-X44)*12.36% -> 12645.61612 | Z44: =V44-W44-X44+Y44 -> 114956.4261 | AA44: 104950 | AB44: 1000 | AC44: 2196.66 | AD44: =(AA44-AB44-AC44)*12.36% -> 12576.71282 | AE44: =AA44-AB44-AC44+AD44 -> 114330.0528 | AF44: 105790 | AG44: 1000 | AH44: 2215.12 | AI44: =(AF44-AG44-AH44)*12.36% -> 12678.25517 | AJ44: =AF44-AG44-AH44+AI44 -> 115253.1352 | AK44: 105520 | AL44: 1000 | AM44: 2209.19 | AN44: =(AK44-AL44-AM44)*12.36% -> 12645.61612 | AO44: =AK44-AL44-AM44+AN44 -> 114956.4261
A45: T50A010A | B45: 104650 | C45: 1000 | D45: 2190.07 | E45: =(B45-C45-D45)*12.36% -> 12540.44735 | F45: =B45-C45-D45+E45 -> 114000.3773 | G45: 104680 | H45: 1000 | I45: 2190.73 | J45: =(G45-H45-I45)*12.36% -> 12544.07377 | K45: =G45-H45-I45+J45 -> 114033.3438 | L45: 104620 | M45: 1000 | N45: 2189.41 | O45: =(L45-M45-N45)*12.36% -> 12536.82092 | P45: =L45-M45-N45+O45 -> 113967.4109 | Q45: 104620 | R45: 1000 | S45: 2189.41 | T45: =(Q45-R45-S45)*12.36% -> 12536.82092 | U45: =Q45-R45-S45+T45 -> 113967.4109 | V45: 105020 | W45: 1000 | X45: 2198.2 | Y45: =(V45-W45-X45)*12.36% -> 12585.17448 | Z45: =V45-W45-X45+Y45 -> 114406.9745 | AA45: 104450 | AB45: 1000 | AC45: 2185.67 | AD45: =(AA45-AB45-AC45)*12.36% -> 12516.27119 | AE45: =AA45-AB45-AC45+AD45 -> 113780.6012 | AF45: 105290 | AG45: 1000 | AH45: 2204.14 | AI45: =(AF45-AG45-AH45)*12.36% -> 12617.8123 | AJ45: =AF45-AG45-AH45+AI45 -> 114703.6723 | AK45: 105020 | AL45: 1000 | AM45: 2198.2 | AN45: =(AK45-AL45-AM45)*12.36% -> 12585.17448 | AO45: =AK45-AL45-AM45+AN45 -> 114406.9745
A46: MF
A47: W52A009A | B47: 100650 | C47: 1000 | D47: 2190.07 | E47: =(B47-C47-D47)*12.36% -> 12046.04735 | F47: =B47-C47-D47+E47 -> 109505.9773 | G47: 100680 | H47: 1000 | I47: 2190.73 | J47: =(G47-H47-I47)*12.36% -> 12049.67377 | K47: =G47-H47-I47+J47 -> 109538.9438 | L47: 100620 | M47: 1000 | N47: 2189.41 | O47: =(L47-M47-N47)*12.36% -> 12042.42092 | P47: =L47-M47-N47+O47 -> 109473.0109 | Q47: 100620 | R47: 1000 | S47: 2189.41 | T47: =(Q47-R47-S47)*12.36% -> 12042.42092 | U47: =Q47-R47-S47+T47 -> 109473.0109 | V47: 101020 | W47: 1000 | X47: 2198.2 | Y47: =(V47-W47-X47)*12.36% -> 12090.77448 | Z47: =V47-W47-X47+Y47 -> 109912.5745 | AA47: 100450 | AB47: 1000 | AC47: 2185.67 | AD47: =(AA47-AB47-AC47)*12.36% -> 12021.87119 | AE47: =AA47-AB47-AC47+AD47 -> 109286.2012 | AF47: 101290 | AG47: 1000 | AH47: 2204.14 | AI47: =(AF47-AG47-AH47)*12.36% -> 12123.4123 | AJ47: =AF47-AG47-AH47+AI47 -> 110209.2723 | AK47: 101020 | AL47: 1000 | AM47: 2198.2 | AN47: =(AK47-AL47-AM47)*12.36% -> 12090.77448 | AO47: =AK47-AL47-AM47+AN47 -> 109912.5745
A48: W52A009OG
A49: W52ASR009A | B49: 100650 | C49: 1000 | D49: 2190.07 | E49: =(B49-C49-D49)*12.36% -> 12046.04735 | F49: =B49-C49-D49+E49 -> 109505.9773 | G49: 100680 | H49: 1000 | I49: 2190.73 | J49: =(G49-H49-I49)*12.36% -> 12049.67377 | K49: =G49-H49-I49+J49 -> 109538.9438 | L49: 100620 | M49: 1000 | N49: 2189.41 | O49: =(L49-M49-N49)*12.36% -> 12042.42092 | P49: =L49-M49-N49+O49 -> 109473.0109 | Q49: 100620 | R49: 1000 | S49: 2189.41 | T49: =(Q49-R49-S49)*12.36% -> 12042.42092 | U49: =Q49-R49-S49+T49 -> 109473.0109 | V49: 101020 | W49: 1000 | X49: 2198.2 | Y49: =(V49-W49-X49)*12.36% -> 12090.77448 | Z49: =V49-W49-X49+Y49 -> 109912.5745 | AA49: 100450 | AB49: 1000 | AC49: 2185.67 | AD49: =(AA49-AB49-AC49)*12.36% -> 12021.87119 | AE49: =AA49-AB49-AC49+AD49 -> 109286.2012 | AF49: 101290 | AG49: 1000 | AH49: 2204.14 | AI49: =(AF49-AG49-AH49)*12.36% -> 12123.4123 | AJ49: =AF49-AG49-AH49+AI49 -> 110209.2723 | AK49: 101020 | AL49: 1000 | AM49: 2198.2 | AN49: =(AK49-AL49-AM49)*12.36% -> 12090.77448 | AO49: =AK49-AL49-AM49+AN49 -> 109912.5745
A50: W55A004A | B50: 103650 | C50: 1000 | D50: 2256 | E50: =(B50-C50-D50)*12.36% -> 12408.6984 | F50: =B50-C50-D50+E50 -> 112802.6984 | G50: 104180 | H50: 1000 | I50: 2267.65 | J50: =(G50-H50-I50)*12.36% -> 12472.76646 | K50: =G50-H50-I50+J50 -> 113385.1165 | L50: 103620 | M50: 1000 | N50: 2255.34 | O50: =(L50-M50-N50)*12.36% -> 12405.07198 | P50: =L50-M50-N50+O50 -> 112769.732 | Q50: 103620 | R50: 1000 | S50: 2255.34 | T50: =(Q50-R50-S50)*12.36% -> 12405.07198 | U50: =Q50-R50-S50+T50 -> 112769.732 | V50: 104020 | W50: 1000 | X50: 2264.13 | Y50: =(V50-W50-X50)*12.36% -> 12453.42553 | Z50: =V50-W50-X50+Y50 -> 113209.2955 | AA50: 103450 | AB50: 1000 | AC50: 2251.61 | AD50: =(AA50-AB50-AC50)*12.36% -> 12384.521 | AE50: =AA50-AB50-AC50+AD50 -> 112582.911 | AF50: 104290 | AG50: 1000 | AH50: 2270.07 | AI50: =(AF50-AG50-AH50)*12.36% -> 12486.06335 | AJ50: =AF50-AG50-AH50+AI50 -> 113505.9933 | AK50: 104020 | AL50: 1000 | AM50: 2264.13 | AN50: =(AK50-AL50-AM50)*12.36% -> 12453.42553 | AO50: =AK50-AL50-AM50+AN50 -> 113209.2955
A51: LLDPE
A52: E20AN009A | B52: 101910 | C52: 1000 | D52: 2217.76 | E52: =(B52-C52-D52)*12.36% -> 12198.36086 | F52: =B52-C52-D52+E52 -> 110890.6009 | G52: 102580 | H52: 1000 | I52: 2232.49 | J52: =(G52-H52-I52)*12.36% -> 12279.35224 | K52: =G52-H52-I52+J52 -> 111626.8622 | L52: 101880 | M52: 1000 | N52: 2217.1 | O52: =(L52-M52-N52)*12.36% -> 12194.73444 | P52: =L52-M52-N52+O52 -> 110857.6344 | Q52: 101880 | R52: 1000 | S52: 2217.1 | T52: =(Q52-R52-S52)*12.36% -> 12194.73444 | U52: =Q52-R52-S52+T52 -> 110857.6344 | V52: 102290 | W52: 1000 | X52: 2226.11 | Y52: =(V52-W52-X52)*12.36% -> 12244.2968 | Z52: =V52-W52-X52+Y52 -> 111308.1868 | AA52: 101710 | AB52: 1000 | AC52: 2213.37 | AD52: =(AA52-AB52-AC52)*12.36% -> 12174.18347 | AE52: =AA52-AB52-AC52+AD52 -> 110670.8135 | AF52: 102550 | AG52: 1000 | AH52: 2231.83 | AI52: =(AF52-AG52-AH52)*12.36% -> 12275.72581 | AJ52: =AF52-AG52-AH52+AI52 -> 111593.8958 | AK52: 102290 | AL52: 1000 | AM52: 2226.11 | AN52: =(AK52-AL52-AM52)*12.36% -> 12244.2968 | AO52: =AK52-AL52-AM52+AN52 -> 111308.1868
A53: E20AN009OG
A54: E36A060A | B54: 105950 | C54: 1000 | D54: 2306.55 | E54: =(B54-C54-D54)*12.36% -> 12686.73042 | F54: =B54-C54-D54+E54 -> 115330.1804 | G54: 106580 | H54: 1000 | I54: 2320.4 | J54: =(G54-H54-I54)*12.36% -> 12762.88656 | K54: =G54-H54-I54+J54 -> 116022.4866 | L54: 105930 | M54: 1000 | N54: 2306.11 | O54: =(L54-M54-N54)*12.36% -> 12684.3128 | P54: =L54-M54-N54+O54 -> 115308.2028 | Q54: 105930 | R54: 1000 | S54: 2306.11 | T54: =(Q54-R54-S54)*12.36% -> 12684.3128 | U54: =Q54-R54-S54+T54 -> 115308.2028 | V54: 106330 | W54: 1000 | X54: 2314.9 | Y54: =(V54-W54-X54)*12.36% -> 12732.66636 | Z54: =V54-W54-X54+Y54 -> 115747.7664 | AA54: 105760 | AB54: 1000 | AC54: 2302.38 | AD54: =(AA54-AB54-AC54)*12.36% -> 12663.76183 | AE54: =AA54-AB54-AC54+AD54 -> 115121.3818 | AF54: 106590 | AG54: 1000 | AH54: 2320.62 | AI54: =(AF54-AG54-AH54)*12.36% -> 12764.09537 | AJ54: =AF54-AG54-AH54+AI54 -> 116033.4754 | AK54: 106330 | AL54: 1000 | AM54: 2314.9 | AN54: =(AK54-AL54-AM54)*12.36% -> 12732.66636 | AO54: =AK54-AL54-AM54+AN54 -> 115747.7664
A55: E36A060OG
A56: FILM
A57: F20S009A | B57: 103410 | C57: 1000 | D57: 2250.73 | E57: =(B57-C57-D57)*12.36% -> 12379.68577 | F57: =B57-C57-D57+E57 -> 112538.9558 | G57: 104080 | H57: 1000 | I57: 2265.45 | J57: =(G57-H57-I57)*12.36% -> 12460.67838 | K57: =G57-H57-I57+J57 -> 113275.2284 | L57: 103380 | M57: 1000 | N57: 2250.07 | O57: =(L57-M57-N57)*12.36% -> 12376.05935 | P57: =L57-M57-N57+O57 -> 112505.9893 | Q57: 103380 | R57: 1000 | S57: 2250.07 | T57: =(Q57-R57-S57)*12.36% -> 12376.05935 | U57: =Q57-R57-S57+T57 -> 112505.9893 | V57: 103790 | W57: 1000 | X57: 2259.08 | Y57: =(V57-W57-X57)*12.36% -> 12425.62171 | Z57: =V57-W57-X57+Y57 -> 112956.5417 | AA57: 103210 | AB57: 1000 | AC57: 2246.33 | AD57: =(AA57-AB57-AC57)*12.36% -> 12355.50961 | AE57: =AA57-AB57-AC57+AD57 -> 112319.1796 | AF57: 104050 | AG57: 1000 | AH57: 2264.79 | AI57: =(AF57-AG57-AH57)*12.36% -> 12457.05196 | AJ57: =AF57-AG57-AH57+AI57 -> 113242.262 | AK57: 103790 | AL57: 1000 | AM57: 2259.08 | AN57: =(AK57-AL57-AM57)*12.36% -> 12425.62171 | AO57: =AK57-AL57-AM57+AN57 -> 112956.5417
A58: F20S009OG
A59: D22S010A | B59: 102410 | C59: 1000 | D59: 2228.75 | E59: =(B59-C59-D59)*12.36% -> 12258.8025 | F59: =B59-C59-D59+E59 -> 111440.0525 | G59: 103080 | H59: 1000 | I59: 2243.48 | J59: =(G59-H59-I59)*12.36% -> 12339.79387 | K59: =G59-H59-I59+J59 -> 112176.3139 | L59: 102380 | M59: 1000 | N59: 2228.09 | O59: =(L59-M59-N59)*12.36% -> 12255.17608 | P59: =L59-M59-N59+O59 -> 111407.0861 | Q59: 102380 | R59: 1000 | S59: 2228.09 | T59: =(Q59-R59-S59)*12.36% -> 12255.17608 | U59: =Q59-R59-S59+T59 -> 111407.0861 | V59: 102790 | W59: 1000 | X59: 2237.1 | Y59: =(V59-W59-X59)*12.36% -> 12304.73844 | Z59: =V59-W59-X59+Y59 -> 111857.6384 | AA59: 102210 | AB59: 1000 | AC59: 2224.35 | AD59: =(AA59-AB59-AC59)*12.36% -> 12234.62634 | AE59: =AA59-AB59-AC59+AD59 -> 111220.2763 | AF59: 103050 | AG59: 1000 | AH59: 2242.82 | AI59: =(AF59-AG59-AH59)*12.36% -> 12336.16745 | AJ59: =AF59-AG59-AH59+AI59 -> 112143.3474 | AK59: 102790 | AL59: 1000 | AM59: 2237.1 | AN59: =(AK59-AL59-AM59)*12.36% -> 12304.73844 | AO59: =AK59-AL59-AM59+AN59 -> 111857.6384
A60: ROTO
A61: R35A042A | B61: 103040 | C61: 1000 | D61: 2242.6 | E61: =(B61-C61-D61)*12.36% -> 12334.95864 | F61: =B61-C61-D61+E61 -> 112132.3586 | G61: 103740 | H61: 1000 | I61: 2257.98 | J61: =(G61-H61-I61)*12.36% -> 12419.57767 | K61: =G61-H61-I61+J61 -> 112901.5977 | L61: 102940 | M61: 1000 | N61: 2240.4 | O61: =(L61-M61-N61)*12.36% -> 12322.87056 | P61: =L61-M61-N61+O61 -> 112022.4706 | Q61: 102940 | R61: 1000 | S61: 2240.4 | T61: =(Q61-R61-S61)*12.36% -> 12322.87056 | U61: =Q61-R61-S61+T61 -> 112022.4706 | V61: 103290 | W61: 1000 | X61: 2248.09 | Y61: =(V61-W61-X61)*12.36% -> 12365.18008 | Z61: =V61-W61-X61+Y61 -> 112407.0901 | AA61: 102730 | AB61: 1000 | AC61: 2235.78 | AD61: =(AA61-AB61-AC61)*12.36% -> 12297.48559 | AE61: =AA61-AB61-AC61+AD61 -> 111791.7056 | AF61: 103560 | AG61: 1000 | AH61: 2254.02 | AI61: =(AF61-AG61-AH61)*12.36% -> 12397.81913 | AJ61: =AF61-AG61-AH61+AI61 -> 112703.7991 | AK61: 103290 | AL61: 1000 | AM61: 2248.09 | AN61: =(AK61-AL61-AM61)*12.36% -> 12365.18008 | AO61: =AK61-AL61-AM61+AN61 -> 112407.0901
A62: R35U042A | B62: 103900 | C62: 1000 | D62: 2261.5 | E62: =(B62-C62-D62)*12.36% -> 12438.9186 | F62: =B62-C62-D62+E62 -> 113077.4186 | G62: 104600 | H62: 1000 | I62: 2276.88 | J62: =(G62-H62-I62)*12.36% -> 12523.53763 | K62: =G62-H62-I62+J62 -> 113846.6576 | L62: 103800 | M62: 1000 | N62: 2259.3 | O62: =(L62-M62-N62)*12.36% -> 12426.83052 | P62: =L62-M62-N62+O62 -> 112967.5305 | Q62: 103800 | R62: 1000 | S62: 2259.3 | T62: =(Q62-R62-S62)*12.36% -> 12426.83052 | U62: =Q62-R62-S62+T62 -> 112967.5305 | V62: 104150 | W62: 1000 | X62: 2266.99 | Y62: =(V62-W62-X62)*12.36% -> 12469.14004 | Z62: =V62-W62-X62+Y62 -> 113352.15 | AA62: 103590 | AB62: 1000 | AC62: 2254.68 | AD62: =(AA62-AB62-AC62)*12.36% -> 12401.44555 | AE62: =AA62-AB62-AC62+AD62 -> 112736.7656 | AF62: 104420 | AG62: 1000 | AH62: 2272.93 | AI62: =(AF62-AG62-AH62)*12.36% -> 12501.77785 | AJ62: =AF62-AG62-AH62+AI62 -> 113648.8479 | AK62: 104150 | AL62: 1000 | AM62: 2266.99 | AN62: =(AK62-AL62-AM62)*12.36% -> 12469.14004 | AO62: =AK62-AL62-AM62+AN62 -> 113352.15
A64: NOTE : | B64: THE PRICES OF OLD PLANT & NEW PLANT ARE SAME FROM DIRECT SALE

Sheet Sheet3
A2: UNITED BROTHERS
A4: 301,HERITAGE PLAZA, R.S.MAHARAJ MARG,( TELI GALLI CROSS LANE), ANDHERI (E), MUMBAI - 400 069
A5: EL: 26844612(4 LINES) FAX: 26822914 E-MAIL: info@unibrothers.com , prashant@unibrothers.com, jyoti@unibrothers.com
A6: EX-WORKS PRICE OF HDPE "G-LEX / G-LENE " W.E.F.19th DECEMBER 2013
A7: CASH / ADVANCE PAYMENT FOR MAHARASHTRA & DAMAN
B8: Freight | D8: 2413.62 | G8: Freight | I8: 4568.54 | L8: Freight | N8: 2476.32 | Q8: Freight 1172.65 | V8: Freight | X8: 4965.91 | AA8: Freight | AB8: 1634.23
D9: BARJORA | G9: HOSUR | L9: JAMMU | Q9: NOIDA | V9: PONDICHERRY | AA9: BARODA
B10: BASIC | C10: DISC | D10: LOC | E10: EXCISE | F10: EX-WKS | G10: BASIC | H10: DISC | I10: LOC | J10: EXCISE | K10: EX-WKS | L10: BASIC | M10: DISC | N10: LOC | O10: EXCISE | P10: EX-WKS | Q10: BASIC | R10: DISC | S10: LOC | T10: EXCISE | U10: EX-WKS | W10: DISC | X10: LOC | Y10: EXCISE | Z10: EX-WKS | AB10: DISC | AC10: LOC | AD10: EXCISE | AE10: EX-WKS
A11: BM
A12: B52A003A | B12: 100380 | C12: 1000 | D12: 2184.14 | E12: =(B12-C12-D12)*12.36% -> 12013.4083 | F12: =B12-C12-D12+E12 -> 109209.2683 | G12: 99160 | H12: 1000 | I12: 2157.32 | J12: =(G12-H12-I12)*12.36% -> 11865.93125 | K12: =G12-H12-I12+J12 -> 107868.6112 | L12: 104280 | M12: 1000 | N12: 2269.85 | O12: =(L12-M12-N12)*12.36% -> 12484.85454 | P12: =L12-M12-N12+O12 -> 113495.0045 | Q12: 102140 | R12: 1000 | S12: 0 | T12: =(Q12-R12-S12)*12.36% -> 12500.904 | U12: =Q12-R12-S12+T12 -> 113640.904 | V12: 99290 | W12: 1000 | X12: 2160.18 | Y12: =(V12-W12-X12)*12.36% -> 11881.64575 | Z12: =V12-W12-X12+Y12 -> 108011.4658 | AA12: 102200 | AB12: 1000 | AC12: 2224.13 | AD12: =(AA12-AB12-AC12)*12.36% -> 12233.41753 | AE12: =AA12-AB12-AC12+AD12 -> 111209.2875
A13: B63A003A | B13: 100380 | C13: 1000 | D13: 2184.14 | E13: =(B13-C13-D13)*12.36% -> 12013.4083 | F13: =B13-C13-D13+E13 -> 109209.2683 | G13: 99160 | H13: 1000 | I13: 2157.32 | J13: =(G13-H13-I13)*12.36% -> 11865.93125 | K13: =G13-H13-I13+J13 -> 107868.6112 | L13: 104280 | M13: 1000 | N13: 2269.85 | O13: =(L13-M13-N13)*12.36% -> 12484.85454 | P13: =L13-M13-N13+O13 -> 113495.0045 | Q13: 102140 | R13: 1000 | S13: 0 | T13: =(Q13-R13-S13)*12.36% -> 12500.904 | U13: =Q13-R13-S13+T13 -> 113640.904 | V13: 99290 | W13: 1000 | X13: 2160.18 | Y13: =(V13-W13-X13)*12.36% -> 11881.64575 | Z13: =V13-W13-X13+Y13 -> 108011.4658 | AA13: 102200 | AB13: 1000 | AC13: 2224.13 | AD13: =(AA13-AB13-AC13)*12.36% -> 12233.41753 | AE13: =AA13-AB13-AC13+AD13 -> 111209.2875
A14: B55HM0003A | B14: 107170 | C14: 1000 | D14: 2333.36 | E14: =(B14-C14-D14)*12.36% -> 12834.2087 | F14: =B14-C14-D14+E14 -> 116670.8487 | G14: 103400 | H14: 1000 | I14: 2250.51 | J14: =(G14-H14-I14)*12.36% -> 12378.47696 | K14: =G14-H14-I14+J14 -> 112527.967 | L14: 108420 | M14: 1000 | N14: 2360.84 | O14: =(L14-M14-N14)*12.36% -> 12985.31218 | P14: =L14-M14-N14+O14 -> 118044.4722 | Q14: 106370 | R14: 1000 | S14: 0 | T14: =(Q14-R14-S14)*12.36% -> 13023.732 | U14: =Q14-R14-S14+T14 -> 118393.732 | V14: 104430 | W14: 1000 | X14: 2273.14 | Y14: =(V14-W14-X14)*12.36% -> 12502.9879 | Z14: =V14-W14-X14+Y14 -> 113659.8479 | AA14: 106560 | AB14: 1000 | AC14: 2319.96 | AD14: =(AA14-AB14-AC14)*12.36% -> 12760.46894 | AE14: =AA14-AB14-AC14+AD14 -> 116000.5089
A15: CABLE-INSUL
A16: C43D006A | B16: 100960 | C16: 1000 | D16: 2196.87 | E16: =(B16-C16-D16)*12.36% -> 12083.52287 | F16: =B16-C16-D16+E16 -> 109846.6529 | G16: 98224 | H16: 1000 | I16: 2136.74 | J16: =(G16-H16-I16)*12.36% -> 11752.78534 | K16: =G16-H16-I16+J16 -> 106840.0453 | L16: 103306 | M16: 1000 | N16: 2248.44 | O16: =(L16-M16-N16)*12.36% -> 12367.11442 | P16: =L16-M16-N16+O16 -> 112424.6744 | Q16: 101349 | R16: 1000 | S16: 0 | T16: =(Q16-R16-S16)*12.36% -> 12403.1364 | U16: =Q16-R16-S16+T16 -> 112752.1364 | V16: 98366 | W16: 1000 | X16: 2139.87 | Y16: =(V16-W16-X16)*12.36% -> 11769.94967 | Z16: =V16-W16-X16+Y16 -> 106996.0797 | AA16: 100821 | AB16: 1000 | AC16: 2193.82 | AD16: =(AA16-AB16-AC16)*12.36% -> 12066.71945 | AE16: =AA16-AB16-AC16+AD16 -> 109693.8994
A18: SHETG
A19: E45A003A | B19: 102060 | C19: 1000 | D19: 2221.06 | E19: =(B19-C19-D19)*12.36% -> 12216.49298 | F19: =B19-C19-D19+E19 -> 111055.433 | G19: 99170 | H19: 1000 | I19: 2157.54 | J19: =(G19-H19-I19)*12.36% -> 11867.14006 | K19: =G19-H19-I19+J19 -> 107879.6001 | L19: 104520 | M19: 1000 | N19: 2275.12 | O19: =(L19-M19-N19)*12.36% -> 12513.86717 | P19: =L19-M19-N19+O19 -> 113758.7472 | Q19: 102460 | R19: 1000 | S19: 0 | T19: =(Q19-R19-S19)*12.36% -> 12540.456 | U19: =Q19-R19-S19+T19 -> 114000.456 | V19: 99320 | W19: 1000 | X19: 2160.84 | Y19: =(V19-W19-X19)*12.36% -> 11885.27218 | Z19: =V19-W19-X19+Y19 -> 108044.4322 | AA19: 102090 | AB19: 1000 | AC19: 2221.72 | AD19: =(AA19-AB19-AC19)*12.36% -> 12220.11941 | AE19: =AA19-AB19-AC19+AD19 -> 111088.3994
A20: E45A003OG
A21: EXTR
A22: E52A003A | B22: 102080 | C22: 1000 | D22: 2221.5 | E22: =(B22-C22-D22)*12.36% -> 12218.9106 | F22: =B22-C22-D22+E22 -> 111077.4106 | G22: 100340 | H22: 1000 | I22: 2183.26 | J22: =(G22-H22-I22)*12.36% -> 12008.57306 | K22: =G22-H22-I22+J22 -> 109165.3131 | L22: 105690 | M22: 1000 | N22: 2300.84 | O22: =(L22-M22-N22)*12.36% -> 12655.30018 | P22: =L22-M22-N22+O22 -> 115044.4602 | Q22: 103630 | R22: 1000 | S22: 0 | T22: =(Q22-R22-S22)*12.36% -> 12685.068 | U22: =Q22-R22-S22+T22 -> 115315.068 | V22: 100490 | W22: 1000 | X22: 2186.55 | Y22: =(V22-W22-X22)*12.36% -> 12026.70642 | Z22: =V22-W22-X22+Y22 -> 109330.1564 | AA22: 103690 | AB22: 1000 | AC22: 2256.88 | AD22: =(AA22-AB22-AC22)*12.36% -> 12413.53363 | AE22: =AA22-AB22-AC22+AD22 -> 112846.6536
A23: E52A003OG
A24: E52U003A | B24: 105860 | C24: 1000 | D24: 2249.63 | E24: =(B24-C24-D24)*12.36% -> 12682.64173 | F24: =B24-C24-D24+E24 -> 115293.0117 | G24: 104120 | H24: 1000 | I24: 2211.39 | J24: =(G24-H24-I24)*12.36% -> 12472.3042 | K24: =G24-H24-I24+J24 -> 113380.9142 | L24: 109470 | M24: 1000 | N24: 2328.97 | O24: =(L24-M24-N24)*12.36% -> 13119.03131 | P24: =L24-M24-N24+O24 -> 119260.0613 | Q24: 107410 | R24: 1000 | S24: 0 | T24: =(Q24-R24-S24)*12.36% -> 13152.276 | U24: =Q24-R24-S24+T24 -> 119562.276 | V24: 104270 | W24: 1000 | X24: 2214.68 | Y24: =(V24-W24-X24)*12.36% -> 12490.43755 | Z24: =V24-W24-X24+Y24 -> 113545.7576 | AA24: 107470 | AB24: 1000 | AC24: 2285.01 | AD24: =(AA24-AB24-AC24)*12.36% -> 12877.26476 | AE24: =AA24-AB24-AC24+AD24 -> 117062.2548
A25: E52U003OG
A26: HM FILM
A27: F55HM0003A | B27: 101850 | C27: 1000 | D27: 2216.44 | E27: =(B27-C27-D27)*12.36% -> 12191.10802 | F27: =B27-C27-D27+E27 -> 110824.668 | G27: 100450 | H27: 1000 | I27: 2185.67 | J27: =(G27-H27-I27)*12.36% -> 12021.87119 | K27: =G27-H27-I27+J27 -> 109286.2012 | L27: 105470 | M27: 1000 | N27: 2296 | O27: =(L27-M27-N27)*12.36% -> 12628.7064 | P27: =L27-M27-N27+O27 -> 114802.7064 | Q27: 103420 | R27: 1000 | S27: 0 | T27: =(Q27-R27-S27)*12.36% -> 12659.112 | U27: =Q27-R27-S27+T27 -> 115079.112 | V27: 101460 | W27: 1000 | X27: 2207.87 | Y27: =(V27-W27-X27)*12.36% -> 12143.96327 | Z27: =V27-W27-X27+Y27 -> 110396.0933 | AA27: 103110 | AB27: 1000 | AC27: 2244.13 | AD27: =(AA27-AB27-AC27)*12.36% -> 12343.42153 | AE27: =AA27-AB27-AC27+AD27 -> 112209.2915
A28: F55HM0003OG
A29: IM HIGH
A30: I50A180A | B30: 99160 | C30: 1000 | D30: 2157.32 | E30: =(B30-C30-D30)*12.36% -> 11865.93125 | F30: =B30-C30-D30+E30 -> 107868.6112 | G30: 97260 | H30: 1000 | I30: 2115.57 | J30: =(G30-H30-I30)*12.36% -> 11636.25155 | K30: =G30-H30-I30+J30 -> 105780.6815 | L30: 102340 | M30: 1000 | N30: 2227.21 | O30: =(L30-M30-N30)*12.36% -> 12250.34084 | P30: =L30-M30-N30+O30 -> 111363.1308 | Q30: 100160 | R30: 1000 | S30: 0 | T30: =(Q30-R30-S30)*12.36% -> 12256.176 | U30: =Q30-R30-S30+T30 -> 111416.176 | V30: 97780 | W30: 1000 | X30: 2126.99 | Y30: =(V30-W30-X30)*12.36% -> 11699.11204 | Z30: =V30-W30-X30+Y30 -> 106352.122 | AA30: 99890 | AB30: 1000 | AC30: 2173.37 | AD30: =(AA30-AB30-AC30)*12.36% -> 11954.17547 | AE30: =AA30-AB30-AC30+AD30 -> 108670.8055
A31: I50A180OG
A32: IM LOW
A33: I60A080A | B33: 101210 | C33: 1000 | D33: 2202.38 | E33: =(B33-C33-D33)*12.36% -> 12113.74183 | F33: =B33-C33-D33+E33 -> 110121.3618 | G33: 98320 | H33: 1000 | I33: 2138.86 | J33: =(G33-H33-I33)*12.36% -> 11764.3889 | K33: =G33-H33-I33+J33 -> 106945.5289 | L33: 103670 | M33: 1000 | N33: 2256.44 | O33: =(L33-M33-N33)*12.36% -> 12411.11602 | P33: =L33-M33-N33+O33 -> 112824.676 | Q33: 101610 | R33: 1000 | S33: 0 | T33: =(Q33-R33-S33)*12.36% -> 12435.396 | U33: =Q33-R33-S33+T33 -> 113045.396 | V33: 98470 | W33: 1000 | X33: 2142.16 | Y33: =(V33-W33-X33)*12.36% -> 11782.52102 | Z33: =V33-W33-X33+Y33 -> 107110.361 | AA33: 101190 | AB33: 1000 | AC33: 2201.94 | AD33: =(AA33-AB33-AC33)*12.36% -> 12111.32422 | AE33: =AA33-AB33-AC33+AD33 -> 110099.3842
A34: I60A080OG
A35: IM-L-UV
A36: I60U080A | B36: 102740 | C36: 1000 | D36: 2236 | E36: =(B36-C36-D36)*12.36% -> 12298.6944 | F36: =B36-C36-D36+E36 -> 111802.6944 | G36: 99850 | H36: 1000 | I36: 2172.49 | J36: =(G36-H36-I36)*12.36% -> 11949.34024 | K36: =G36-H36-I36+J36 -> 108626.8502 | L36: 105200 | M36: 1000 | N36: 2290.07 | O36: =(L36-M36-N36)*12.36% -> 12596.06735 | P36: =L36-M36-N36+O36 -> 114505.9973 | Q36: 103140 | R36: 1000 | S36: 0 | T36: =(Q36-R36-S36)*12.36% -> 12624.504 | U36: =Q36-R36-S36+T36 -> 114764.504 | V36: 100000 | W36: 1000 | X36: 2175.78 | Y36: =(V36-W36-X36)*12.36% -> 11967.47359 | Z36: =V36-W36-X36+Y36 -> 108791.6936 | AA36: 102690 | AB36: 1000 | AC36: 2234.9 | AD36: =(AA36-AB36-AC36)*12.36% -> 12292.65036 | AE36: =AA36-AB36-AC36+AD36 -> 111747.7504
A37: I60U080OG
A38: PIPE (PE80)
A39: P54A001A | B39: 109570 | C39: 1000 | D39: 2331.17 | E39: =(B39-C39-D39)*12.36% -> 13131.11939 | F39: =B39-C39-D39+E39 -> 119369.9494 | G39: 106160 | H39: 1000 | I39: 2256.22 | J39: =(G39-H39-I39)*12.36% -> 12718.90721 | K39: =G39-H39-I39+J39 -> 115622.6872 | L39: 111180 | M39: 1000 | N39: 2366.55 | O39: =(L39-M39-N39)*12.36% -> 13325.74242 | P39: =L39-M39-N39+O39 -> 121139.1924 | Q39: 109130 | R39: 1000 | S39: 0 | T39: =(Q39-R39-S39)*12.36% -> 13364.868 | U39: =Q39-R39-S39+T39 -> 121494.868 | V39: 107230 | W39: 1000 | X39: 2279.74 | Y39: =(V39-W39-X39)*12.36% -> 12848.25214 | Z39: =V39-W39-X39+Y39 -> 116798.5121 | AA39: 109320 | AB39: 1000 | AC39: 2325.67 | AD39: =(AA39-AB39-AC39)*12.36% -> 13100.89919 | AE39: =AA39-AB39-AC39+AD39 -> 119095.2292
A40: P54A001OG
A41: PIPE (PE100)
A42: P52A003A | B42: 111580 | C42: 1000 | D42: 2375.34 | E42: =(B42-C42-D42)*12.36% -> 13374.09598 | F42: =B42-C42-D42+E42 -> 121578.756 | G42: 108160 | H42: 1000 | I42: 2300.18 | J42: =(G42-H42-I42)*12.36% -> 12960.67375 | K42: =G42-H42-I42+J42 -> 117820.4938 | L42: 113180 | M42: 1000 | N42: 2410.5 | O42: =(L42-M42-N42)*12.36% -> 13567.5102 | P42: =L42-M42-N42+O42 -> 123337.0102 | Q42: 111130 | R42: 1000 | S42: 0 | T42: =(Q42-R42-S42)*12.36% -> 13612.068 | U42: =Q42-R42-S42+T42 -> 123742.068 | V42: 109240 | W42: 1000 | X42: 2323.93 | Y42: =(V42-W42-X42)*12.36% -> 13091.22625 | Z42: =V42-W42-X42+Y42 -> 119007.2963 | AA42: 111320 | AB42: 1000 | AC42: 2369.63 | AD42: =(AA42-AB42-AC42)*12.36% -> 13342.66573 | AE42: =AA42-AB42-AC42+AD42 -> 121293.0357
A43: RAFFIA
A44: W50A009A | B44: 105430 | C44: 1000 | D44: 2207.21 | E44: =(B44-C44-D44)*12.36% -> 12634.73684 | F44: =B44-C44-D44+E44 -> 114857.5268 | G44: 102940 | H44: 1000 | I44: 2152.49 | J44: =(G44-H44-I44)*12.36% -> 12333.73624 | K44: =G44-H44-I44+J44 -> 112121.2462 | L44: 108290 | M44: 1000 | N44: 2270.07 | O44: =(L44-M44-N44)*12.36% -> 12980.46335 | P44: =L44-M44-N44+O44 -> 118000.3933 | Q44: 106230 | R44: 1000 | S44: 0 | T44: =(Q44-R44-S44)*12.36% -> 13006.428 | U44: =Q44-R44-S44+T44 -> 118236.428 | V44: 102590 | W44: 1000 | X44: 2144.8 | Y44: =(V44-W44-X44)*12.36% -> 12291.42672 | Z44: =V44-W44-X44+Y44 -> 111736.6267 | AA44: 105690 | AB44: 1000 | AC44: 2212.93 | AD44: =(AA44-AB44-AC44)*12.36% -> 12666.16585 | AE44: =AA44-AB44-AC44+AD44 -> 115143.2359
A45: T50A010A | B45: 104930 | C45: 1000 | D45: 2196.22 | E45: =(B45-C45-D45)*12.36% -> 12574.29521 | F45: =B45-C45-D45+E45 -> 114308.0752 | G45: 102440 | H45: 1000 | I45: 2141.5 | J45: =(G45-H45-I45)*12.36% -> 12273.2946 | K45: =G45-H45-I45+J45 -> 111571.7946 | L45: 107790 | M45: 1000 | N45: 2258.08 | O45: =(L45-M45-N45)*12.36% -> 12920.14531 | P45: =L45-M45-N45+O45 -> 117452.0653 | Q45: 105730 | R45: 1000 | S45: 0 | T45: =(Q45-R45-S45)*12.36% -> 12944.628 | U45: =Q45-R45-S45+T45 -> 117674.628 | V45: 102590 | W45: 1000 | X45: 2144.8 | Y45: =(V45-W45-X45)*12.36% -> 12291.42672 | Z45: =V45-W45-X45+Y45 -> 111736.6267 | AA45: 105190 | AB45: 1000 | AC45: 2201.94 | AD45: =(AA45-AB45-AC45)*12.36% -> 12605.72422 | AE45: =AA45-AB45-AC45+AD45 -> 114593.7842
A46: MF
A47: W52A009A | B47: 101330 | C47: 1000 | D47: 2205.01 | E47: =(B47-C47-D47)*12.36% -> 12128.24876 | F47: =B47-C47-D47+E47 -> 110253.2388 | G47: 98440 | H47: 1000 | I47: 2141.5 | J47: =(G47-H47-I47)*12.36% -> 11778.8946 | K47: =G47-H47-I47+J47 -> 107077.3946 | L47: 103790 | M47: 1000 | N47: 2259.08 | O47: =(L47-M47-N47)*12.36% -> 12425.62171 | P47: =L47-M47-N47+O47 -> 112956.5417 | Q47: 101730 | R47: 1000 | S47: 0 | T47: =(Q47-R47-S47)*12.36% -> 12450.228 | U47: =Q47-R47-S47+T47 -> 113180.228 | V47: 98590 | W47: 1000 | X47: 2144.8 | Y47: =(V47-W47-X47)*12.36% -> 11797.02672 | Z47: =V47-W47-X47+Y47 -> 107242.2267 | AA47: 101190 | AB47: 1000 | AC47: 2201.94 | AD47: =(AA47-AB47-AC47)*12.36% -> 12111.32422 | AE47: =AA47-AB47-AC47+AD47 -> 110099.3842
A48: W52A009OG
A49: W52ASR009A | B49: 101330 | C49: 1000 | D49: 2205.01 | E49: =(B49-C49-D49)*12.36% -> 12128.24876 | F49: =B49-C49-D49+E49 -> 110253.2388 | G49: 98440 | H49: 1000 | I49: 2141.5 | J49: =(G49-H49-I49)*12.36% -> 11778.8946 | K49: =G49-H49-I49+J49 -> 107077.3946 | L49: 103790 | M49: 1000 | N49: 2259.08 | O49: =(L49-M49-N49)*12.36% -> 12425.62171 | P49: =L49-M49-N49+O49 -> 112956.5417 | Q49: 101730 | R49: 1000 | S49: 0 | T49: =(Q49-R49-S49)*12.36% -> 12450.228 | U49: =Q49-R49-S49+T49 -> 113180.228 | V49: 98590 | W49: 1000 | X49: 2144.8 | Y49: =(V49-W49-X49)*12.36% -> 11797.02672 | Z49: =V49-W49-X49+Y49 -> 107242.2267 | AA49: 101190 | AB49: 1000 | AC49: 2201.94 | AD49: =(AA49-AB49-AC49)*12.36% -> 12111.32422 | AE49: =AA49-AB49-AC49+AD49 -> 110099.3842
A50: W55A004A | B50: 104330 | C50: 1000 | D50: 2270.95 | E50: =(B50-C50-D50)*12.36% -> 12490.89858 | F50: =B50-C50-D50+E50 -> 113549.9486 | G50: 101440 | H50: 1000 | I50: 2207.43 | J50: =(G50-H50-I50)*12.36% -> 12141.54565 | K50: =G50-H50-I50+J50 -> 110374.1157 | L50: 106790 | M50: 1000 | N50: 2325.01 | O50: =(L50-M50-N50)*12.36% -> 12788.27276 | P50: =L50-M50-N50+O50 -> 116253.2628 | Q50: 104730 | R50: 1000 | S50: 0 | T50: =(Q50-R50-S50)*12.36% -> 12821.028 | U50: =Q50-R50-S50+T50 -> 116551.028 | V50: 101590 | W50: 1000 | X50: 2210.73 | Y50: =(V50-W50-X50)*12.36% -> 12159.67777 | Z50: =V50-W50-X50+Y50 -> 110538.9478 | AA50: 104690 | AB50: 1000 | AC50: 2278.86 | AD50: =(AA50-AB50-AC50)*12.36% -> 12534.4169 | AE50: =AA50-AB50-AC50+AD50 -> 113945.5569
A51: LLDPE
A52: E20AN009A | B52: 101300 | C52: 1000 | D52: 2204.35 | E52: =(B52-C52-D52)*12.36% -> 12124.62234 | F52: =B52-C52-D52+E52 -> 110220.2723 | G52: 99710 | H52: 1000 | I52: 2169.41 | J52: =(G52-H52-I52)*12.36% -> 11932.41692 | K52: =G52-H52-I52+J52 -> 108473.0069 | L52: 105060 | M52: 1000 | N52: 2286.99 | O52: =(L52-M52-N52)*12.36% -> 12579.14404 | P52: =L52-M52-N52+O52 -> 114352.154 | Q52: 103000 | R52: 1000 | S52: 0 | T52: =(Q52-R52-S52)*12.36% -> 12607.2 | U52: =Q52-R52-S52+T52 -> 114607.2 | V52: 99860 | W52: 1000 | X52: 2172.71 | Y52: =(V52-W52-X52)*12.36% -> 11950.54904 | Z52: =V52-W52-X52+Y52 -> 108637.839 | AA52: 103090 | AB52: 1000 | AC52: 2243.69 | AD52: =(AA52-AB52-AC52)*12.36% -> 12341.00392 | AE52: =AA52-AB52-AC52+AD52 -> 112187.3139
A53: E20AN009OG
A54: E36A060A | B54: 106940 | C54: 1000 | D54: 2328.31 | E54: =(B54-C54-D54)*12.36% -> 12806.40488 | F54: =B54-C54-D54+E54 -> 116418.0949 | G54: 103750 | H54: 1000 | I54: 2258.2 | J54: =(G54-H54-I54)*12.36% -> 12420.78648 | K54: =G54-H54-I54+J54 -> 112912.5865 | L54: 109100 | M54: 1000 | N54: 2375.78 | O54: =(L54-M54-N54)*12.36% -> 13067.51359 | P54: =L54-M54-N54+O54 -> 118791.7336 | Q54: 107040 | R54: 1000 | S54: 0 | T54: =(Q54-R54-S54)*12.36% -> 13106.544 | U54: =Q54-R54-S54+T54 -> 119146.544 | V54: 103900 | W54: 1000 | X54: 2261.5 | Y54: =(V54-W54-X54)*12.36% -> 12438.9186 | Z54: =V54-W54-X54+Y54 -> 113077.4186 | AA54: 107090 | AB54: 1000 | AC54: 2331.61 | AD54: =(AA54-AB54-AC54)*12.36% -> 12824.537 | AE54: =AA54-AB54-AC54+AD54 -> 116582.927
A55: E36A060OG
A56: FILM
A57: F20S009A | B57: 102800 | C57: 1000 | D57: 2237.32 | E57: =(B57-C57-D57)*12.36% -> 12305.94725 | F57: =B57-C57-D57+E57 -> 111868.6272 | G57: 101210 | H57: 1000 | I57: 2202.38 | J57: =(G57-H57-I57)*12.36% -> 12113.74183 | K57: =G57-H57-I57+J57 -> 110121.3618 | L57: 106560 | M57: 1000 | N57: 2319.96 | O57: =(L57-M57-N57)*12.36% -> 12760.46894 | P57: =L57-M57-N57+O57 -> 116000.5089 | Q57: 104500 | R57: 1000 | S57: 0 | T57: =(Q57-R57-S57)*12.36% -> 12792.6 | U57: =Q57-R57-S57+T57 -> 116292.6 | V57: 101360 | W57: 1000 | X57: 2205.67 | Y57: =(V57-W57-X57)*12.36% -> 12131.87519 | Z57: =V57-W57-X57+Y57 -> 110286.2052 | AA57: 104590 | AB57: 1000 | AC57: 2276.66 | AD57: =(AA57-AB57-AC57)*12.36% -> 12522.32882 | AE57: =AA57-AB57-AC57+AD57 -> 113835.6688
A58: F20S009OG
A59: D22S010A | B59: 101800 | C59: 1000 | D59: 2215.34 | E59: =(B59-C59-D59)*12.36% -> 12185.06398 | F59: =B59-C59-D59+E59 -> 110769.724 | G59: 100210 | H59: 1000 | I59: 2180.4 | J59: =(G59-H59-I59)*12.36% -> 11992.85856 | K59: =G59-H59-I59+J59 -> 109022.4586 | L59: 105560 | M59: 1000 | N59: 2297.98 | O59: =(L59-M59-N59)*12.36% -> 12639.58567 | P59: =L59-M59-N59+O59 -> 114901.6057 | Q59: 103500 | R59: 1000 | S59: 0 | T59: =(Q59-R59-S59)*12.36% -> 12669 | U59: =Q59-R59-S59+T59 -> 115169 | V59: 100360 | W59: 1000 | X59: 2183.7 | Y59: =U59-V59-W59+X59 -> 15992.7 | Z59: =V59-W59-X59+Y59 -> 113169 | AA59: 103590 | AB59: 1000 | AC59: 2254.68 | AD59: =(AA59-AB59-AC59)*12.36% -> 12401.44555 | AE59: =AA59-AB59-AC59+AD59 -> 112736.7656
A60: ROTO
A61: R35A042A | B61: 104720 | C61: 1000 | D61: 2279.52 | E61: =(B61-C61-D61)*12.36% -> 12538.04333 | F61: =B61-C61-D61+E61 -> 113978.5233 | G61: 100700 | H61: 1000 | I61: 2191.17 | J61: =(G61-H61-I61)*12.36% -> 12052.09139 | K61: =G61-H61-I61+J61 -> 109560.9214 | L61: 106070 | M61: 1000 | N61: 2309.19 | O61: =(L61-M61-N61)*12.36% -> 12701.23612 | P61: =L61-M61-N61+O61 -> 115462.0461 | Q61: 104020 | R61: 1000 | S61: 0 | T61: =(Q61-R61-S61)*12.36% -> 12733.272 | U61: =Q61-R61-S61+T61 -> 115753.272 | V61: 101370 | W61: 1000 | X61: 2205.89 | Y61: =(V61-W61-X61)*12.36% -> 12133.084 | Z61: =V61-W61-X61+Y61 -> 110297.194 | AA61: 104210 | AB61: 1000 | AC61: 2268.31 | AD61: =(AA61-AB61-AC61)*12.36% -> 12476.39288 | AE61: =AA61-AB61-AC61+AD61 -> 113418.0829
A62: R35U042A | B62: 106000 | C62: 1000 | D62: 2307.65 | E62: =(B62-C62-D62)*12.36% -> 12692.77446 | F62: =B62-C62-D62+E62 -> 115385.1245 | G62: 101560 | H62: 1000 | I62: 2210.07 | J62: =(G62-H62-I62)*12.36% -> 12156.05135 | K62: =G62-H62-I62+J62 -> 110505.9813 | L62: 106930 | M62: 1000 | N62: 2328.09 | O62: =(L62-M62-N62)*12.36% -> 12805.19608 | P62: =L62-M62-N62+O62 -> 116407.1061 | Q62: 105280 | R62: 1000 | S62: 0 | T62: =(Q62-R62-S62)*12.36% -> 12889.008 | U62: =Q62-R62-S62+T62 -> 117169.008 | V62: 102250 | W62: 1000 | X62: 2225.23 | Y62: =(V62-W62-X62)*12.36% -> 12239.46157 | Z62: =V62-W62-X62+Y62 -> 111264.2316 | AA62: 105070 | AB62: 1000 | AC62: 2287.21 | AD62: =(AA62-AB62-AC62)*12.36% -> 12580.35284 | AE62: =AA62-AB62-AC62+AD62 -> 114363.1428
A64: NOTE : | B64: THE PRICES OF OLD PLANT & NEW PLANT ARE SAME FROM DIRECT SALE

Sheet Sheet4
A1: UNITED BROTHERS
A2: CONSIGNMENT STOCKIST OF GAIL (INDIA) LTD
A3: 301,HERITAGE PLAZA, R.S.MAHARAJ MARG,( TELI GALLI CROSS LANE), ANDHERI (E), MUMBAI - 400 069
A4: TEL: 26844612(4 LINES) FAX: 26822914 E-MAIL: info@unibrothers.com ,prashant@unibrothers.com ,jyoti@unibrothers.com
A5: EX-WORKS PRICE OF HDPE "G-LEX / G-LENE " W.E.F. 19th DECEMBER 2013
A6: CASH / ADVANCE PAYMENT FOR MAHARASHTRA & DAMAN
B7: Freight 948.22 | G7: Freight 3077.78 | N7: FREIGHT 1692.36 | R7: FREIGHT 5217.66 | V7: Freight 1908.21
B8: ALWAR | G8: HYDERABAD | L8: BADDI | Q8: UDMALPET | V8: BHAVNAGAR
B9: BASIC | C9: DISC | D9: LOC | E9: EXCISE | F9: EX-WKS | G9: BASIC | H9: DISC | I9: LOC | J9: EXCISE | K9: EX-WKS | L9: BASIC | M9: DISC | N9: LOC | O9: EXCISE | P9: EX-WKS | Q9: BASIC | R9: DISC | S9: LOC | T9: EXCISE | U9: EX-WKS | W9: DISC | X9: LOC | Y9: EXCISE | Z9: EX-WKS
A10: BM
A11: B52A003A | B11: 104470 | C11: 1000 | D11: 2274.02 | E11: =(B11-C11-D11)*12.36% -> 12507.82313 | F11: =B11-C11-D11+E11 -> 113703.8031 | G11: 100900 | H11: 1000 | I11: 2195.56 | J11: =(G11-H11-I11)*12.36% -> 12076.26878 | K11: =G11-H11-I11+J11 -> 109780.7088 | L11: 104020 | M11: 1000 | N11: 2264.13 | O11: =(L11-M11-N11)*12.36% -> 12453.42553 | P11: =L11-M11-N11+O11 -> 113209.2955 | Q11: 99210 | R11: 1000 | S11: 2158.42 | T11: =(Q11-R11-S11)*12.36% -> 11871.97529 | U11: =Q11-R11-S11+T11 -> 107923.5553 | V11: 102110 | W11: 1000 | X11: 2222.16 | Y11: =(V11-W11-X11)*12.36% -> 12222.53702 | Z11: =V11-W11-X11+Y11 -> 111110.377
A12: B63A003A | B12: 104470 | C12: 1000 | D12: 2274.02 | E12: =(B12-C12-D12)*12.36% -> 12507.82313 | F12: =B12-C12-D12+E12 -> 113703.8031 | G12: 100900 | H12: 1000 | I12: 2195.56 | J12: =(G12-H12-I12)*12.36% -> 12076.26878 | K12: =G12-H12-I12+J12 -> 109780.7088 | L12: 104020 | M12: 1000 | N12: 2264.13 | O12: =(L12-M12-N12)*12.36% -> 12453.42553 | P12: =L12-M12-N12+O12 -> 113209.2955 | Q12: 99210 | R12: 1000 | S12: 2158.42 | T12: =(Q12-R12-S12)*12.36% -> 11871.97529 | U12: =Q12-R12-S12+T12 -> 107923.5553 | V12: 102110 | W12: 1000 | X12: 2222.16 | Y12: =(V12-W12-X12)*12.36% -> 12222.53702 | Z12: =V12-W12-X12+Y12 -> 111110.377
A13: B55HM0003A | B13: 108670 | C13: 1000 | D13: 2366.33 | E13: =(B13-C13-D13)*12.36% -> 13015.53361 | F13: =B13-C13-D13+E13 -> 118319.2036 | G13: 105440 | H13: 1000 | I13: 2295.34 | J13: =(G13-H13-I13)*12.36% -> 12625.07998 | K13: =G13-H13-I13+J13 -> 114769.74 | L13: 108680 | M13: 1000 | N13: 2366.55 | O13: =(L13-M13-N13)*12.36% -> 13016.74242 | P13: =L13-M13-N13+O13 -> 118330.1924 | Q13: 103360 | R13: 1000 | S13: 2249.63 | T13: =(Q13-R13-S13)*12.36% -> 12373.64173 | U13: =Q13-R13-S13+T13 -> 112484.0117 | V13: 106470 | W13: 1000 | X13: 2317.98 | Y13: =(V13-W13-X13)*12.36% -> 12749.58967 | Z13: =V13-W13-X13+Y13 -> 115901.6097
A14: CABLE-INSUL
A15: C43D006A | B15: 103544 | C15: 1000 | D15: 2253.66 | E15: =(B15-C15-D15)*12.36% -> 12395.88602 | F15: =B15-C15-D15+E15 -> 112686.226 | G15: 100437 | H15: 1000 | I15: 2185.39 | J15: =(G15-H15-I15)*12.36% -> 12020.299 | K15: =G15-H15-I15+J15 -> 109271.909 | L15: 103591 | M15: 1000 | N15: 2254.71 | O15: =(L15-M15-N15)*12.36% -> 12401.56544 | P15: =L15-M15-N15+O15 -> 112737.8554 | Q15: 98271 | R15: 1000 | S15: 2137.78 | T15: =(Q15-R15-S15)*12.36% -> 11758.46599 | U15: =Q15-R15-S15+T15 -> 106891.686 | V15: 100735 | W15: 1000 | X15: 2191.94 | Y15: =(V15-W15-X15)*12.36% -> 12056.32222 | Z15: =V15-W15-X15+Y15 -> 109599.3822
A17: SHETG
A18: E45A003A | B18: 104780 | C18: 1000 | D18: 2280.84 | E18: =(B18-C18-D18)*12.36% -> 12545.29618 | F18: =B18-C18-D18+E18 -> 114044.4562 | G18: 101510 | H18: 1000 | I18: 2208.97 | J18: =(G18-H18-I18)*12.36% -> 12150.00731 | K18: =G18-H18-I18+J18 -> 110451.0373 | L18: 104830 | M18: 1000 | N18: 2281.94 | O18: =(L18-M18-N18)*12.36% -> 12551.34022 | P18: =L18-M18-N18+O18 -> 114099.4002 | Q18: 99220 | R18: 1000 | S18: 2158.64 | T18: =(Q18-R18-S18)*12.36% -> 11873.1841 | U18: =Q18-R18-S18+T18 -> 107934.5441 | V18: 102000 | W18: 1000 | X18: 2219.74 | Y18: =(V18-W18-X18)*12.36% -> 12209.24014 | Z18: =V18-W18-X18+Y18 -> 110989.5001
A19: E45A003OG
A20: EXTR
A21: E52A003A | B21: 105950 | C21: 1000 | D21: 2306.55 | E21: =(B21-C21-D21)*12.36% -> 12686.73042 | F21: =B21-C21-D21+E21 -> 115330.1804 | G21: 102680 | H21: 1000 | I21: 2234.68 | J21: =(G21-H21-I21)*12.36% -> 12291.44155 | K21: =G21-H21-I21+J21 -> 111736.7616 | L21: 106000 | M21: 1000 | N21: 2307.65 | O21: =(L21-M21-N21)*12.36% -> 12692.77446 | P21: =L21-M21-N21+O21 -> 115385.1245 | Q21: 100390 | R21: 1000 | S21: 2184.36 | T21: =(Q21-R21-S21)*12.36% -> 12014.6171 | U21: =Q21-R21-S21+T21 -> 109220.2571 | V21: 103600 | W21: 1000 | X21: 2254.9 | Y21: =(V21-W21-X21)*12.36% -> 12402.65436 | Z21: =V21-W21-X21+Y21 -> 112747.7544
A22: E52A003OG
A23: E52U003A | B23: 109730 | C23: 1000 | D23: 2334.68 | E23: =(B23-C23-D23)*12.36% -> 13150.46155 | F23: =B23-C23-D23+E23 -> 119545.7816 | G23: 106460 | H23: 1000 | I23: 2262.82 | J23: =(G23-H23-I23)*12.36% -> 12755.17145 | K23: =G23-H23-I23+J23 -> 115952.3514 | L23: 109780 | M23: 1000 | N23: 2335.78 | O23: =(L23-M23-N23)*12.36% -> 13156.50559 | P23: =L23-M23-N23+O23 -> 119600.7256 | Q23: 104170 | R23: 1000 | S23: 2212.49 | T23: =(Q23-R23-S23)*12.36% -> 12478.34824 | U23: =Q23-R23-S23+T23 -> 113435.8582 | V23: 107380 | W23: 1000 | X23: 2283.03 | Y23: =(V23-W23-X23)*12.36% -> 12866.38549 | Z23: =V23-W23-X23+Y23 -> 116963.3555
A24: E52U003OG
A25: HM FILM
A26: F55HM0003A | B26: 105720 | C26: 1000 | D26: 2301.5 | E26: =(B26-C26-D26)*12.36% -> 12658.9266 | F26: =B26-C26-D26+E26 -> 115077.4266 | G26: 100740 | H26: 1000 | I26: 2192.05 | J26: =(G26-H26-I26)*12.36% -> 12056.92662 | K26: =G26-H26-I26+J26 -> 109604.8766 | L26: 104980 | M26: 1000 | N26: 2285.23 | O26: =(L26-M26-N26)*12.36% -> 12569.47357 | P26: =L26-M26-N26+O26 -> 114264.2436 | Q26: 100410 | R26: 1000 | S26: 2184.79 | T26: =(Q26-R26-S26)*12.36% -> 12017.03596 | U26: =Q26-R26-S26+T26 -> 109242.246 | V26: 103020 | W26: 1000 | X26: 2242.16 | Y26: =(V26-W26-X26)*12.36% -> 12332.54102 | Z26: =V26-W26-X26+Y26 -> 112110.381
A27: F55HM0003OG
A28: IM HIGH
A29: I50A180A | B29: 102450 | C29: 1000 | D29: 2229.63 | E29: =(B29-C29-D29)*12.36% -> 12263.63773 | F29: =B29-C29-D29+E29 -> 111484.0077 | G29: 99430 | H29: 1000 | I29: 2163.26 | J29: =(G29-H29-I29)*12.36% -> 11898.56906 | K29: =G29-H29-I29+J29 -> 108165.3091 | L29: 102020 | M29: 1000 | N29: 2220.18 | O29: =(L29-M29-N29)*12.36% -> 12211.65775 | P29: =L29-M29-N29+O29 -> 111011.4778 | Q29: 97420 | R29: 1000 | S29: 2119.08 | T29: =(Q29-R29-S29)*12.36% -> 11655.59371 | U29: =Q29-R29-S29+T29 -> 105956.5137 | V29: 99850 | W29: 1000 | X29: 2172.49 | Y29: =(V29-W29-X29)*12.36% -> 11949.34024 | Z29: =V29-W29-X29+Y29 -> 108626.8502
A30: I50A180OG
A31: IM LOW
A32: I60A080A | B32: 103920 | C32: 1000 | D32: 2261.94 | E32: =(B32-C32-D32)*12.36% -> 12441.33622 | F32: =B32-C32-D32+E32 -> 113099.3962 | G32: 100650 | H32: 1000 | I32: 2190.07 | J32: =(G32-H32-I32)*12.36% -> 12046.04735 | K32: =G32-H32-I32+J32 -> 109505.9773 | L32: 103980 | M32: 1000 | N32: 2263.25 | O32: =(L32-M32-N32)*12.36% -> 12448.5903 | P32: =L32-M32-N32+O32 -> 113165.3403 | Q32: 98370 | R32: 1000 | S32: 2139.96 | T32: =(Q32-R32-S32)*12.36% -> 11770.43294 | U32: =Q32-R32-S32+T32 -> 107000.4729 | V32: 101100 | W32: 1000 | X32: 2199.96 | Y32: =(V32-W32-X32)*12.36% -> 12100.44494 | Z32: =V32-W32-X32+Y32 -> 110000.4849
A33: I60A080OG
A34: IM-L-UV
A35: I60U080A | B35: 105460 | C35: 1000 | D35: 2295.78 | E35: =(B35-C35-D35)*12.36% -> 12627.49759 | F35: =B35-C35-D35+E35 -> 114791.7176 | G35: 102190 | H35: 1000 | I35: 2223.91 | J35: =(G35-H35-I35)*12.36% -> 12232.20872 | K35: =G35-H35-I35+J35 -> 111198.2987 | L35: 105510 | M35: 1000 | N35: 2296.88 | O35: =(L35-M35-N35)*12.36% -> 12633.54163 | P35: =L35-M35-N35+O35 -> 114846.6616 | Q35: 99910 | R35: 1000 | S35: 2173.81 | T35: =(Q35-R35-S35)*12.36% -> 11956.59308 | U35: =Q35-R35-S35+T35 -> 108692.7831 | V35: 102600 | W35: 1000 | X35: 2232.93 | Y35: =(V35-W35-X35)*12.36% -> 12281.76985 | Z35: =V35-W35-X35+Y35 -> 111648.8399
A36: I60U080OG
A37: PIPE (PE80)
A38: P54A001A | B38: 111430 | C38: 1000 | D38: 2372.04 | E38: =(B38-C38-D38)*12.36% -> 13355.96386 | F38: =B38-C38-D38+E38 -> 121413.9239 | G38: 108200 | H38: 1000 | I38: 2301.06 | J38: =(G38-H38-I38)*12.36% -> 12965.50898 | K38: =G38-H38-I38+J38 -> 117864.449 | L38: 111440 | M38: 1000 | N38: 2372.26 | O38: =(L38-M38-N38)*12.36% -> 13357.17266 | P38: =L38-M38-N38+O38 -> 121424.9127 | Q38: 106120 | R38: 1000 | S38: 2255.34 | T38: =(Q38-R38-S38)*12.36% -> 12714.07198 | U38: =Q38-R38-S38+T38 -> 115578.732 | V38: 109230 | W38: 1000 | X38: 2323.69 | Y38: =(V38-W38-X38)*12.36% -> 13090.01992 | Z38: =V38-W38-X38+Y38 -> 118996.3299
A39: PIPE (PE100)
A40: P52A003A | B40: 113430 | C40: 1000 | D40: 2146 | E40: =(B40-C40-D40)*12.36% -> 13631.1024 | F40: =B40-C40-D40+E40 -> 123915.1024 | G40: 110200 | H40: 1000 | I40: 2345.01 | J40: =(G40-H40-I40)*12.36% -> 13207.27676 | K40: =G40-H40-I40+J40 -> 120062.2668 | L40: 113440 | M40: 1000 | N40: 2416.22 | O40: =(L40-M40-N40)*12.36% -> 13598.93921 | P40: =L40-M40-N40+O40 -> 123622.7192 | Q40: 108120 | R40: 1000 | S40: 2299.3 | T40: =(Q40-R40-S40)*12.36% -> 12955.83852 | U40: =Q40-R40-S40+T40 -> 117776.5385 | V40: 111230 | W40: 1000 | X40: 2367.65 | Y40: =(V40-W40-X40)*12.36% -> 13331.78646 | Z40: =V40-W40-X40+Y40 -> 121194.1365
A41: RAFFIA
A42: W50A009A | B42: 108050 | C42: 1000 | D42: 2264.79 | E42: =(B42-C42-D42)*12.36% -> 12951.45196 | F42: =B42-C42-D42+E42 -> 117736.662 | G42: 105280 | H42: 1000 | I42: 2203.92 | J42: =(G42-H42-I42)*12.36% -> 12616.60349 | K42: =G42-H42-I42+J42 -> 114692.6835 | L42: 108600 | M42: 1000 | N42: 2276.88 | O42: =(L42-M42-N42)*12.36% -> 13017.93763 | P42: =L42-M42-N42+O42 -> 118341.0576 | Q42: 102500 | R42: 1000 | S42: 2142.82 | T42: =(Q42-R42-S42)*12.36% -> 12280.54745 | U42: =Q42-R42-S42+T42 -> 111637.7274 | V42: 105600 | W42: 1000 | X42: 2210.95 | Y42: =(V42-W42-X42)*12.36% -> 12655.28658 | Z42: =V42-W42-X42+Y42 -> 115044.3366
A43: T50A010A | B43: 108050 | C43: 1000 | D43: 2264.79 | E43: =(B43-C43-D43)*12.36% -> 12951.45196 | F43: =B43-C43-D43+E43 -> 117736.662 | G43: 104780 | H43: 1000 | I43: 2192.93 | J43: =(G43-H43-I43)*12.36% -> 12556.16185 | K43: =G43-H43-I43+J43 -> 114143.2319 | L43: 108100 | M43: 1000 | N43: 2265.89 | O43: =(L43-M43-N43)*12.36% -> 12957.496 | P43: =L43-M43-N43+O43 -> 117791.606 | Q43: 102500 | R43: 1000 | S43: 2142.82 | T43: =(Q43-R43-S43)*12.36% -> 12280.54745 | U43: =Q43-R43-S43+T43 -> 111637.7274 | V43: 105100 | W43: 1000 | X43: 2199.96 | Y43: =(V43-W43-X43)*12.36% -> 12594.84494 | Z43: =V43-W43-X43+Y43 -> 114494.8849
A44: MF
A45: W52A009A | B45: 104050 | C45: 1000 | D45: 2264.79 | E45: =(B45-C45-D45)*12.36% -> 12457.05196 | F45: =B45-C45-D45+E45 -> 113242.262 | G45: 100780 | H45: 1000 | I45: 2192.93 | J45: =(G45-H45-I45)*12.36% -> 12061.76185 | K45: =G45-H45-I45+J45 -> 109648.8319 | L45: 104100 | M45: 1000 | N45: 2265.89 | O45: =(L45-M45-N45)*12.36% -> 12463.096 | P45: =L45-M45-N45+O45 -> 113297.206 | Q45: 98500 | R45: 1000 | S45: 2142.82 | T45: =(Q45-R45-S45)*12.36% -> 11786.14745 | U45: =Q45-R45-S45+T45 -> 107143.3274 | V45: 101100 | W45: 1000 | X45: 2199.96 | Y45: =(V45-W45-X45)*12.36% -> 12100.44494 | Z45: =V45-W45-X45+Y45 -> 110000.4849
A46: W52A009OG
A47: W52ASR009A | B47: 104050 | C47: 1000 | D47: 2264.79 | E47: =(B47-C47-D47)*12.36% -> 12457.05196 | F47: =B47-C47-D47+E47 -> 113242.262 | G47: 100780 | H47: 1000 | I47: 2192.93 | J47: =(G47-H47-I47)*12.36% -> 12061.76185 | K47: =G47-H47-I47+J47 -> 109648.8319 | L47: 104100 | M47: 1000 | N47: 2265.89 | O47: =(L47-M47-N47)*12.36% -> 12463.096 | P47: =L47-M47-N47+O47 -> 113297.206 | Q47: 98500 | R47: 1000 | S47: 2142.82 | T47: =(Q47-R47-S47)*12.36% -> 11786.14745 | U47: =Q47-R47-S47+T47 -> 107143.3274 | V47: 101100 | W47: 1000 | X47: 2199.96 | Y47: =(V47-W47-X47)*12.36% -> 12100.44494 | Z47: =V47-W47-X47+Y47 -> 110000.4849
A48: W55A004A | B48: 107050 | C48: 1000 | D48: 2330.73 | E48: =(B48-C48-D48)*12.36% -> 12819.70177 | F48: =B48-C48-D48+E48 -> 116538.9718 | G48: 103780 | H48: 1000 | I48: 2258.86 | J48: =(G48-H48-I48)*12.36% -> 12424.4129 | K48: =G48-H48-I48+J48 -> 112945.5529 | L48: 107100 | M48: 1000 | N48: 2331.83 | O48: =(L48-M48-N48)*12.36% -> 12825.74581 | P48: =L48-M48-N48+O48 -> 116593.9158 | Q48: 101500 | R48: 1000 | S48: 2208.75 | T48: =(Q48-R48-S48)*12.36% -> 12148.7985 | U48: =Q48-R48-S48+T48 -> 110440.0485 | V48: 104600 | W48: 1000 | X48: 2276.88 | Y48: =(V48-W48-X48)*12.36% -> 12523.53763 | Z48: =V48-W48-X48+Y48 -> 113846.6576
A49: LLDPE
A50: E20AN009A | B50: 105310 | C50: 1000 | D50: 2292.49 | E50: =(B50-C50-D50)*12.36% -> 12609.36424 | F50: =B50-C50-D50+E50 -> 114626.8742 | G50: 102040 | H50: 1000 | I50: 2220.62 | J50: =(G50-H50-I50)*12.36% -> 12214.07537 | K50: =G50-H50-I50+J50 -> 111033.4554 | L50: 105360 | M50: 1000 | N50: 2293.58 | O50: =(L50-M50-N50)*12.36% -> 12615.40951 | P50: =L50-M50-N50+O50 -> 114681.8295 | Q50: 99760 | R50: 1000 | S50: 2170.51 | T50: =(Q50-R50-S50)*12.36% -> 11938.46096 | U50: =Q50-R50-S50+T50 -> 108527.951 | V50: 103000 | W50: 1000 | X50: 2241.72 | Y50: =(V50-W50-X50)*12.36% -> 12330.12341 | Z50: =V50-W50-X50+Y50 -> 112088.4034
A51: E20AN009OG
A52: E36A060A | B52: 109350 | C52: 1000 | D52: 2381.27 | E52: =(B52-C52-D52)*12.36% -> 13097.73503 | F52: =B52-C52-D52+E52 -> 119066.465 | G52: 106080 | H52: 1000 | I52: 2309.41 | J52: =(G52-H52-I52)*12.36% -> 12702.44492 | K52: =G52-H52-I52+J52 -> 115473.0349 | L52: 109410 | M52: 1000 | N52: 2382.59 | O52: =(L52-M52-N52)*12.36% -> 13104.98788 | P52: =L52-M52-N52+O52 -> 119132.3979 | Q52: 103800 | R52: 1000 | S52: 2259.3 | T52: =(Q52-R52-S52)*12.36% -> 12426.83052 | U52: =Q52-R52-S52+T52 -> 112967.5305 | V52: 107000 | W52: 1000 | X52: 2329.63 | Y52: =(V52-W52-X52)*12.36% -> 12813.65773 | Z52: =V52-W52-X52+Y52 -> 116484.0277
A53: E36A060OG
A54: FILM
A55: F20S009A | B55: 106810 | C55: 1000 | D55: 2325.45 | E55: =(B55-C55-D55)*12.36% -> 12790.69038 | F55: =B55-C55-D55+E55 -> 116275.2404 | G55: 103540 | H55: 1000 | I55: 2253.58 | J55: =(G55-H55-I55)*12.36% -> 12395.40151 | K55: =G55-H55-I55+J55 -> 112681.8215 | L55: 106860 | M55: 1000 | N55: 2326.55 | O55: =(L55-M55-N55)*12.36% -> 12796.73442 | P55: =L55-M55-N55+O55 -> 116330.1844 | Q55: 101260 | R55: 1000 | S55: 2203.48 | T55: =(Q55-R55-S55)*12.36% -> 12119.78587 | U55: =Q55-R55-S55+T55 -> 110176.3059 | V55: 104500 | W55: 1000 | X55: 2274.68 | Y55: =(V55-W55-X55)*12.36% -> 12511.44955 | Z55: =V55-W55-X55+Y55 -> 113736.7696
A56: F20S009OG
A57: D22S010A | B57: 105810 | C57: 1000 | D57: 2303.47 | E57: =(B57-C57-D57)*12.36% -> 12669.80711 | F57: =B57-C57-D57+E57 -> 115176.3371 | G57: 102540 | H57: 1000 | I57: 2231.61 | J57: =(G57-H57-I57)*12.36% -> 12274.517 | K57: =G57-H57-I57+J57 -> 111582.907 | L57: 105860 | M57: 1000 | N57: 2304.57 | O57: =(L57-M57-N57)*12.36% -> 12675.85115 | P57: =L57-M57-N57+O57 -> 115231.2811 | Q57: 100260 | R57: 1000 | S57: 2181.5 | T57: =(Q57-R57-S57)*12.36% -> 11998.9026 | U57: =Q57-R57-S57+T57 -> 109077.4026 | V57: 103500 | W57: 1000 | X57: 2252.71 | Y57: =(V57-W57-X57)*12.36% -> 12390.56504 | Z57: =V57-W57-X57+Y57 -> 112637.855
A58: ROTO
A59: R35A042A | B59: 106320 | C59: 1000 | D59: 2314.68 | E59: =(B59-C59-D59)*12.36% -> 12731.45755 | F59: =B59-C59-D59+E59 -> 115736.7776 | G59: 103090 | H59: 1000 | I59: 2243.69 | J59: =(G59-H59-I59)*12.36% -> 12341.00392 | K59: =G59-H59-I59+J59 -> 112187.3139 | L59: 106330 | M59: 1000 | N59: 2314.9 | O59: =(L59-M59-N59)*12.36% -> 12732.66636 | P59: =L59-M59-N59+O59 -> 115747.7664 | Q59: 100860 | R59: 1000 | S59: 2194.68 | T59: =(Q59-R59-S59)*12.36% -> 12071.43355 | U59: =Q59-R59-S59+T59 -> 109736.7536 | V59: 104120 | W59: 1000 | X59: 2266.33 | Y59: =(V59-W59-X59)*12.36% -> 12465.51361 | Z59: =V59-W59-X59+Y59 -> 113319.1836
A60: R35U042A | B60: 107180 | C60: 1000 | D60: 2333.58 | E60: =(B60-C60-D60)*12.36% -> 12835.41751 | F60: =B60-C60-D60+E60 -> 116681.8375 | G60: 103950 | H60: 1000 | I60: 2262.6 | J60: =(G60-H60-I60)*12.36% -> 12444.96264 | K60: =G60-H60-I60+J60 -> 113132.3626 | L60: 107190 | M60: 1000 | N60: 2333.8 | O60: =(L60-M60-N60)*12.36% -> 12836.62632 | P60: =L60-M60-N60+O60 -> 116692.8263 | Q60: 101720 | R60: 1000 | S60: 2213.59 | T60: =(Q60-R60-S60)*12.36% -> 12175.39228 | U60: =Q60-R60-S60+T60 -> 110681.8023 | V60: 104980 | W60: 1000 | X60: 2285.23 | Y60: =(V60-W60-X60)*12.36% -> 12569.47357 | Z60: =V60-W60-X60+Y60 -> 114264.2436
A62: NOTE : | B62: THE PRICES OF OLD PLANT & NEW PLANT ARE SAME FROM DIRECT SALE

Sheet STOCK POINT PRICE
A2: UNITED BROTHERS
A3: CONSIGNMENT STOCKIST OF GAIL (INDIA) LTD
A4: 301,HERITAGE PLAZA, R.S.MAHARAJ MARG,( TELI GALLI CROSS LANE), ANDHERI (E), MUMBAI - 400 069
A5: TEL: 26844612(4 LINES) FAX: 26822914 E-MAIL:info@unibrothers.com,prashant@unibrothers.com,jyoti@unibrothers.com
A6: PRICE OF HDPE "G-LEX / G-LENE " W.E.F 19th DECEMBER 2013
C8: DAMAN | D8: BHIWANDI | E8: PUNE
C9: ST.PT. | D9: ST.PT. | E9: ST.PT. | G9: FREIGHT
B10: BM | G10: ALWAR | H10: 948.22
B11: B52A003A | C11: 115550 | D11: 115380 | E11: 115490 | G11: BHAVNAGAR | H11: 1908.21
B12: B52A003NA | C12: 114980 | D12: 114810 | E12: 115490 | G12: BADDI | H12: 1692.36
B13: B63A003A | C13: 115550 | D13: 115380 | E13: 115490 | G13: DAMAN | H13: 1935.55
B14: B63A003NA | C14: 114980 | D14: 114810 | E14: 115490 | G14: SILVASSA | H14: 1947.27
B15: B55HM0003A | C15: 119990 | D15: 119880 | E15: 120010 | G15: BHIWANDI | H15: 2419.12
B16: B55HM0003NA | C16: 119420 | D16: 119310 | E16: 120010 | G16: JALGAON | H16: 1867.95
B17: B53EA0035A | C17: 116110 | D17: 115940 | E17: 116050 | G17: NAGPUR | H17: 1549.28
B18: SHETG | G18: SANGLI | H18: 2926.19
B19: E45A003A | C19: 115610 | D19: 115410 | E19: 115590 | G19: UMBERGAON | H19: 1900.2
G20: PUNE | H20: 2517.33
B21: EXTR | G21: WAI | H21: 2693.7
B22: E52A003A | C22: 116920 | D22: 116720 | E22: 116900 | G22: HYDERABAD | H22: 3077.78
B23: E52A003NA | C23: 116350 | D23: 116150 | E23: 116900 | G23: NASIK | H23: 2176.61
B24: E52U003A | C24: 118360 | D24: 118160 | E24: 118340 | G24: AHMEDNAGAR | H24: 2332.94
B25: E52U003NA | C25: 117790 | D25: 117590 | E25: 118340 | G25: ROHA | H25: 2683.68
B26: HM FILM | G26: AURANGABAD | H26: 2142.53
B27: F55HM0003A | C27: 116110 | D27: 116570 | E27: 116700 | G27: TARAPUR | H27: 2489.27
B28: F55HM0003NA | C28: 115540 | D28: 116000 | E28: 116700 | G28: THANE | H28: 2461.21
B29: IM HIGH | G29: SOLAPUR | H29: 2701.72
B30: I50A180A | C30: 113100 | D30: 113060 | E30: 113190 | G30: BAROJRA | H30: 2413.62
G31: HOSUR | H31: 4568.54
B32: IM LOW | G32: JAMMU | H32: 2476.32
B33: I60A080A | C33: 114640 | D33: 114450 | E33: 114630 | G33: NOIDA | H33: 1172.65
G34: PONDICHERRY | H34: 4965.91
B35: IM-L-UV | G35: UDMALPET | H35: 5217.66
B36: I60U080A | C36: 116370 | D36: 116170 | E36: 116350 | G36: KOLHAPUR | H36: 3016.38
G37: BARODA | H37: 1634.23
B38: PIPE (PE80)
B39: P54A001A | C39: 120280 | D39: 120170 | E39: 116350
B40: P54A001NA | C40: 119710 | D40: 119600 | E40: 120310
B41: PIPE (PE100)
B42: P52A003A | C42: 122530 | D42: 122420 | E42: 122550
B43: P52A003NA | C43: 121960 | D43: 121850 | E43: 122550
B44: RAFFIA
B45: W50A009A | C45: 115350 | D45: 115150 | E45: 115330 | G45: QUANTITY DISCOUNT
B46: T50A010A | C46: 114790 | D46: 114590 | E46: 114770
B47: MF | G47: QTY MTS | H47: AMT
B48: W55A004A | C48: 118160 | D48: 117960 | E48: 118140 | G48: >=10 | H48: 300
B49: W55A004NA | C49: 117590 | D49: 117390 | E49: 118140 | G49: >=30 | H49: 400
B50: W52A009A | C50: 114790 | D50: 114590 | E50: 114770 | G50: >=50 | H50: 500
B51: W52A009NA | C51: 114220 | D51: 114020 | E51: 114770 | G51: >=100 | H51: 600
B52: W52ASR009A | C52: 114790 | D52: 114590 | E52: 114770 | G52: >=200 | H52: 700
B53: W52ASR009NA | C53: 114220 | D53: 114020 | E53: 114770 | G53: >=300 | H53: 750
B54: LLDPE | G54: >=400 | H54: 800
G55: >=600 | H55: 900
B56: E36A060A | C56: 120740 | D56: 120560 | E56: 120730
B58: FILM
B59: F20S009A | C59: 117890 | D59: 117700 | E59: 117870
B60: F20S009OG
B61: D22S010A | C61: 116760 | D61: 116580 | E61: 116740
B62: E20AN009A | C62: 116200 | D62: 116020 | E62: 116180
B63: ROTO
B64: R35A042A | C64: 117350 | D64: 117240 | E64: 117370
B65: R35U042A | C65: 118320 | D65: 118210 | E65: 118340
B67: * Ex Works Cash Discount (Rs.1000/-)
B68: 1. Freight & Transportation will be extra and at buyers account, on Ex-Works sale
B69: 2. The price of B Grade will be Rs.500/- PMT less than Prime Grade for Ex.Works sale and Rs.580/- P.M.T. less for Stock Point Sales.
B70: 3. The price of Old Plant & New Plant are same from Direct Sale
B71: 4. The price of Standardised Grade will be Rs.500/-PMT less than Prime Grade for Ex.Wks.sale and Rs.580/-P.M.T.less for St.Pt. Sales.
B72: 5. 14 days interest free credit is applicable in lieu of this credit a Cash Discount of Rs.800/- PMT is offered in the
B73: basic price in case of Cash Payment in Ex-Works Sale.
B74: 6. Stock point Price is net price
B75: 7. Cash/quantity Discount is not applicable for OG & PS Grade.
B76: 8. CST & Transportation will be charged extra & at buyers account on Exworks sale
B77: 9. CST / Vat & Transporation will be charged extra & at buyers account on Stock Point sale
B78: 10. The prices are subject to change without any prior notice those prevailing at the time of delivery will be applicable.
B79: 11. C-Form is mandatory for all Ex-works Sales w.e.f.1st April'2002.
B80: 12. Gas Authority Of India Ltd. changed to GAIL (India) Ltd. w.e.f. 1st January 2003.
B81: 13. CST @ 2% WILL BE APPLICABLE
B82: 14. Payment will be accepted through RTGS only.
B84: JYOTI | C84: 9930945123
B85: ASHISH | C85: 9029914092
